Workbook

Sheet TOT-0216
B2: ANEXO II al Memorandum D.T.E.E. N° 294 / 2017
A4: ENTE NACIONAL REGULADOR
A5: DE LA ELECTRICIDAD
B7: SISTEMA DE TRANSPORTE DE ENERGÍA ELÉCTRICA POR DISTRIBUCIÓN TRONCAL
B9: TRANSNEA S.A.
B11: TOTAL DE PENALIZACIONES
B13: 2
B14: Desde el 01 al 29 de Febrero de 2016
B16: Sanciones duplicadas por tasa de falla > 4 Sal. x año/100km.
C18: 1.- | D18: LÍNEAS
D20: 1.1.- | E20: Equipamiento propio | I20: ='LI-02 (1)'!AA44 -> 1756417.62
D21: 1.2.- | E21: Transportista Independiente D.P.E.C. | I21: ='LI-DPEC-02 (1)'!AA44 -> 8795.91
C23: 2.- | D23: CONEXIÓN
D25: 2.1.- | E25: Transformación Equipamiento propio | I25: =+'T-02 (2)'!$AC$43 -> 223735.17
D26: 2.2.- | E26: Salidas Equipamiento propio | I26: =+'SA-12 (1)'!$V$43 -> 62586.06
C28: 3.- | D28: SUPERVISIÓN
D30: 3.1.- | E30: Transportista Independiente D.P.E.C. | I30: ='SUP-DPEC'!I63 -> 2198.318233
F34: TOTAL | G34: =SUM(I20:I30) -> 2053733.078

Sheet LI-02 (1)
B2: =+'TOT-0216'!B2 -> ANEXO II al Memorandum D.T.E.E. N° 294 / 2017
A4: ENTE NACIONAL REGULADOR
A5: DE LA ELECTRICIDAD
F8: SISTEMA DE TRANSPORTE DE ENERGÍA ELÉCTRICA POR DISTRIBUCIÓN TRONCAL - TRANSNEA S.A.
F10: 1.- LÍNEAS
F12: 1.1.- Líneas propias
B14: =+'TOT-0216'!B14 -> Desde el 01 al 29 de Febrero de 2016
F16: $/100 km-h : LÍNEAS 220 kV | G16: 360.925
F17: $/100 km-h : LÍNEAS 132 kV | G17: 345.493 | K17: FACTOR DE PENALIZACIÓN K = | L17: =30*'TOT-0216'!B13 -> 60 | M17: =IF(L17=30," ",IF(L17=60,"Coeficiente duplicado por tasa de falla >4 Sal. x año/100 km.","REVISAR COEFICIENTE")) -> Coeficiente duplicado por tasa de falla >4 Sal. x año/100 km.
F18: $/100 km-h : LÍNEAS 33 kV | G18: 345.493
C19: 3 | D19: 4 | E19: 5 | F19: 6 | G19: 7 | H19: 8 | I19: 9 | J19: 10 | K19: 11 | L19: 12 | M19: 13 | N19: 14 | O19: 15 | P19: 16 | Q19: 17 | R19: 18 | S19: 19 | T19: 20 | U19: 21 | V19: 22 | W19: 23 | X19: 24 | Y19: 25 | Z19: 26 | AA19: 27
C20: N° | D20: INDISP | E20: ID EQUIPO | F20: LÍNEAS | G20: U [kV] | H20: Long. [km] | I20: $/h | J20: Salida | K20: Entrada | L20: Hs. Indisp. | M20: Minutos Indisp. | N20: Tipo Sal.(²) | O20: C.R. % | P20: PENALIZAC. PROGRAM. | Q20: REDUCC. PROGRAM. | R20: PENALIZACIÓN FORZADA Por Salida 1ras. 3 hs. hs. Restantes | U20: REDUCC. FORZADA Por Salida 1ras. 3 hs. hs. Restantes | X20: RESTANTE FORZADA | Y20: REDUCC. RESTANTE | Z20: Informó enTérm. | AA20: TOTAL PENALIZAC.
C23: 1 | D23: 261606 | E23: 748 | F23: STA. CATALINA - RESISTENCIA | G23: 132 | H23: 42 | I23: =IF(H23>25,H23,25)*IF(G23=220,$G$16,IF(G23=132,$G$17,$G$18))/100 -> 145.10706 | J23: 2016-02-01 | K23: 2016-02-29T23:59:59 | L23: =IF(F23="","",(K23-J23)*24) -> 695.9997222 | M23: =IF(F23="","",ROUND((K23-J23)*24*60,0)) -> 41760 | N23: P | O23: =IF(F23="","","--") -> -- | P23: =IF(N23="P",ROUND(M23/60,2)*I23*$L$17*0.01,"--") -> 60596.70826 | Q23: =IF(N23="RP",ROUND(M23/60,2)*I23*$L$17*0.01*O23/100,"--") -> -- | R23: =IF(N23="F",I23*$L$17,"--") -> -- | S23: =IF(AND(M23>10,N23="F"),I23*$L$17*IF(M23>180,3,ROUND(M23/60,2)),"--") -> -- | T23: =IF(AND(N23="F",M23>180),(ROUND(M23/60,2)-3)*I23*$L$17*0.1,"--") -> -- | U23: =IF(N23="R",I23*$L$17*O23/100,"--") -> -- | V23: =IF(AND(M23>10,N23="R"),I23*$L$17*O23/100*IF(M23>180,3,ROUND(M23/60,2)),"--") -> -- | W23: =IF(AND(N23="R",M23>180),(ROUND(M23/60,2)-3)*I23*$L$17*0.1*O23/100,"--") -> -- | X23: =IF(N23="RF",ROUND(M23/60,2)*I23*$L$17*0.1,"--") -> -- | Y23: =IF(N23="RR",ROUND(M23/60,2)*I23*$L$17*0.1*O23/100,"--") -> -- | Z23: SI | AA23: =IF(F23="","",SUM(P23:Y23)*IF(Z23="SI",1,2)) -> 60596.70826
C24: 2 | D24: 289100 | E24: 1002 | F24: BARRANQUERAS - CORRIENTES 1 | G24: 33 | H24: 11.80000019 | I24: =IF(H24>25,H24,25)*IF(G24=220,$G$16,IF(G24=132,$G$17,$G$18))/100 -> 86.37325 | J24: 2016-02-01 | K24: 2016-02-29T23:59:59 | L24: =IF(F24="","",(K24-J24)*24) -> 695.9997222 | M24: =IF(F24="","",ROUND((K24-J24)*24*60,0)) -> 41760 | N24: RF | O24: =IF(F24="","","--") -> -- | P24: =IF(N24="P",ROUND(M24/60,2)*I24*$L$17*0.01,"--") -> -- | Q24: =IF(N24="RP",ROUND(M24/60,2)*I24*$L$17*0.01*O24/100,"--") -> -- | R24: =IF(N24="F",I24*$L$17,"--") -> -- | S24: =IF(AND(M24>10,N24="F"),I24*$L$17*IF(M24>180,3,ROUND(M24/60,2)),"--") -> -- | T24: =IF(AND(N24="F",M24>180),(ROUND(M24/60,2)-3)*I24*$L$17*0.1,"--") -> -- | U24: =IF(N24="R",I24*$L$17*O24/100,"--") -> -- | V24: =IF(AND(M24>10,N24="R"),I24*$L$17*O24/100*IF(M24>180,3,ROUND(M24/60,2)),"--") -> -- | W24: =IF(AND(N24="R",M24>180),(ROUND(M24/60,2)-3)*I24*$L$17*0.1*O24/100,"--") -> -- | X24: =IF(N24="RF",ROUND(M24/60,2)*I24*$L$17*0.1,"--") -> 360694.692 | Y24: =IF(N24="RR",ROUND(M24/60,2)*I24*$L$17*0.1*O24/100,"--") -> -- | Z24: SI | AA24: =IF(F24="","",SUM(P24:Y24)*IF(Z24="SI",1,2)) -> 360694.692
C25: 3 | D25: 291181 | E25: 946 | F25: PASO DE LOS LIBRES - URUGUAYANA | G25: 132 | H25: 3.900000095 | I25: 86.37325 | J25: 2016-02-01 | K25: 2016-02-29T23:59:59 | L25: 695.9997222 | M25: 41760 | N25: RF | O25: -- | P25: -- | Q25: -- | R25: -- | S25: -- | T25: -- | U25: -- | V25: -- | W25: -- | X25: 360694.692 | Y25: -- | Z25: SI | AA25: 360694.692
C26: 4 | D26: 296379 | E26: 1003 | F26: BARRANQUERAS - CORRIENTES 2 | G26: 33 | H26: 11.80000019 | I26: 86.37325 | J26: 2016-02-01 | K26: 2016-02-29T23:59:59 | L26: 695.9997222 | M26: 41760 | N26: RF | O26: -- | P26: -- | Q26: -- | R26: -- | S26: -- | T26: -- | U26: -- | V26: -- | W26: -- | X26: 360694.692 | Y26: -- | Z26: SI | AA26: 360694.692
C27: 5 | D27: 298552 | E27: 4317 | F27: PIRANE - IBARRETA | G27: 132 | H27: 91.80000305 | I27: 317.1625845 | J27: 2016-02-02T21:16:00 | K27: 2016-02-02T21:30:00 | L27: 0.2333333334 | M27: 14 | N27: F | O27: -- | P27: -- | Q27: -- | R27: 19029.75507 | S27: 4376.843667 | T27: -- | U27: -- | V27: -- | W27: -- | X27: -- | Y27: -- | Z27: SI | AA27: 23406.59874
C28: 6 | D28: 298691 | E28: 746 | F28: MONTE CASEROS - CHAJARI | G28: 132 | H28: 74.5 | I28: 257.392285 | J28: 2016-02-09T11:08:00 | K28: 2016-02-09T11:15:00 | L28: 0.1166666667 | M28: 7 | N28: F | O28: -- | P28: -- | Q28: -- | R28: 15443.5371 | S28: -- | T28: -- | U28: -- | V28: -- | W28: -- | X28: -- | Y28: -- | Z28: SI | AA28: 15443.5371
C29: 7 | D29: 298707 | E29: 746 | F29: MONTE CASEROS - CHAJARI | G29: 132 | H29: 74.5 | I29: 257.392285 | J29: 2016-02-09T13:01:00 | K29: 2016-02-09T13:07:00 | L29: 0.09999999998 | M29: 6 | N29: F | O29: -- | P29: -- | Q29: -- | R29: 15443.5371 | S29: -- | T29: -- | U29: -- | V29: -- | W29: -- | X29: -- | Y29: -- | Z29: SI | AA29: 15443.5371
C30: 8 | D30: 298723 | E30: 746 | F30: MONTE CASEROS - CHAJARI | G30: 132 | H30: 74.5 | I30: 257.392285 | J30: 2016-02-09T13:46:00 | K30: 2016-02-09T19:15:00 | L30: 5.483333333 | M30: 329 | N30: F | O30: -- | P30: -- | Q30: -- | R30: 15443.5371 | S30: 46330.6113 | T30: 3829.997201 | U30: -- | V30: -- | W30: -- | X30: -- | Y30: -- | Z30: SI | AA30: 65604.1456
C31: 9 | D31: 298746 | E31: 742 | F31: CORRIENTES - RESISTENCIA | G31: 132 | H31: 33 | I31: 114.01269 | J31: 2016-02-11T12:50:00 | K31: 2016-02-13T20:22:00 | L31: 55.53333333 | M31: 3332 | N31: F | O31: -- | P31: -- | Q31: -- | R31: 6840.7614 | S31: 20522.2842 | T31: 35934.51963 | U31: -- | V31: -- | W31: -- | X31: -- | Y31: -- | Z31: SI | AA31: 63297.56523
C32: 10 | D32: 298772 | E32: 5556 | F32: FORMOSA I - MANSILLA 1 | G32: 132 | H32: 60.6 | I32: 209.368758 | J32: 2016-02-14T13:22:00 | K32: 2016-02-14T14:17:00 | L32: 0.9166666667 | M32: 55 | N32: F | O32: -- | P32: -- | Q32: -- | R32: 12562.12548 | S32: 11557.15544 | T32: -- | U32: -- | V32: -- | W32: -- | X32: -- | Y32: -- | Z32: SI | AA32: 24119.28092
C33: 11 | D33: 299126 | E33: 746 | F33: MONTE CASEROS - CHAJARI | G33: 132 | H33: 74.5 | I33: 257.392285 | J33: 2016-02-16T07:23:00 | K33: 2016-02-16T08:03:00 | L33: 0.6666666667 | M33: 40 | N33: F | O33: -- | P33: -- | Q33: -- | R33: 15443.5371 | S33: 10347.16986 | T33: -- | U33: -- | V33: -- | W33: -- | X33: -- | Y33: -- | Z33: SI | AA33: 25790.70696
C34: 12 | D34: 299142 | E34: 743 | F34: SALTO GRANDE AR - CHAJARI | G34: 132 | H34: 60.90000153 | I34: 210.4052423 | J34: 2016-02-17T07:55:00 | K34: 2016-02-17T12:57:00 | L34: 5.033333333 | M34: 302 | N34: F | O34: -- | P34: -- | Q34: -- | R34: 12624.31454 | S34: 37872.94361 | T34: 2562.735851 | U34: -- | V34: -- | W34: -- | X34: -- | Y34: -- | Z34: SI | AA34: 53059.994
C35: 13 | D35: 299159 | E35: 5047 | F35: GRAN FORMOSA - CLORINDA 1 | G35: 132 | H35: 103.5 | I35: 357.585255 | J35: 2016-02-18T07:07:00 | K35: 2016-02-18T11:58:00 | L35: 4.85 | M35: 291 | N35: P | O35: -- | P35: 1040.573092 | Q35: -- | R35: -- | S35: -- | T35: -- | U35: -- | V35: -- | W35: -- | X35: -- | Y35: -- | Z35: SI | AA35: 1040.573092
C36: 14 | D36: 299178 | E36: 743 | F36: SALTO GRANDE AR - CHAJARI | G36: 132 | H36: 60.90000153 | I36: 210.4052423 | J36: 2016-02-19T09:12:00 | K36: 2016-02-19T13:46:00 | L36: 4.566666667 | M36: 274 | N36: F | O36: -- | P36: -- | Q36: -- | R36: 12624.31454 | S36: 37872.94361 | T36: 1982.017382 | U36: -- | V36: -- | W36: -- | X36: -- | Y36: -- | Z36: SI | AA36: 52479.27553
C37: 15 | D37: 299457 | E37: 746 | F37: MONTE CASEROS - CHAJARI | G37: 132 | H37: 74.5 | I37: 257.392285 | J37: 2016-02-19T13:57:00 | K37: 2016-02-22T20:30:00 | L37: 78.55 | M37: 4713 | N37: F | O37: -- | P37: -- | Q37: -- | R37: 15443.5371 | S37: 46330.6113 | T37: 116675.9228 | U37: -- | V37: -- | W37: -- | X37: -- | Y37: -- | Z37: SI | AA37: 178450.0712
C38: 16 | D38: 299265 | E38: 739 | F38: BARRANQUERAS - RESISTENCIA 1 | G38: 132 | H38: 31.4 | I38: 108.484802 | J38: 2016-02-19T14:34:00 | K38: 2016-02-19T19:36:00 | L38: 5.033333333 | M38: 302 | N38: F | O38: -- | P38: -- | Q38: -- | R38: 6509.08812 | S38: 19527.26436 | T38: 1321.344888 | U38: -- | V38: -- | W38: -- | X38: -- | Y38: -- | Z38: SI | AA38: 27357.69737
C39: 17 | D39: 299266 | E39: 4800 | F39: RESISTENCIA - BARRANQUERAS 1(RESIS. NOR.) | G39: 132 | H39: 12.6 | I39: 86.37325 | J39: 2016-02-19T14:34:00 | K39: 2016-02-19T21:14:00 | L39: 6.666666667 | M39: 400 | N39: F | O39: -- | P39: -- | Q39: -- | R39: 5182.395 | S39: 15547.185 | T39: 1901.938965 | U39: -- | V39: -- | W39: -- | X39: -- | Y39: -- | Z39: SI | AA39: 22631.51897
C40: 18 | D40: 299295 | E40: 742 | F40: CORRIENTES - RESISTENCIA | G40: 132 | H40: 33 | I40: 114.01269 | J40: 2016-02-21T01:57:00 | K40: 2016-02-21T11:24:00 | L40: 9.45 | M40: 567 | N40: F | O40: -- | P40: -- | Q40: -- | R40: 6840.7614 | S40: 20522.2842 | T40: 4412.291103 | U40: -- | V40: -- | W40: -- | X40: -- | Y40: -- | Z40: SI | AA40: 31775.3367
C41: 19 | D41: 299570 | E41: 4800 | F41: RESISTENCIA - BARRANQUERAS 1(RESIS. NOR.) | G41: 132 | H41: 12.6 | I41: =IF(H41>25,H41,25)*IF(G41=220,$G$16,IF(G41=132,$G$17,$G$18))/100 -> 86.37325 | J41: 2016-02-22T11:50:00 | K41: 2016-02-22T13:30:00 | L41: =IF(F41="","",(K41-J41)*24) -> 1.666666667 | M41: =IF(F41="","",ROUND((K41-J41)*24*60,0)) -> 100 | N41: F | O41: =IF(F41="","","--") -> -- | P41: =IF(N41="P",ROUND(M41/60,2)*I41*$L$17*0.01,"--") -> -- | Q41: =IF(N41="RP",ROUND(M41/60,2)*I41*$L$17*0.01*O41/100,"--") -> -- | R41: =IF(N41="F",I41*$L$17,"--") -> 5182.395 | S41: =IF(AND(M41>10,N41="F"),I41*$L$17*IF(M41>180,3,ROUND(M41/60,2)),"--") -> 8654.59965 | T41: =IF(AND(N41="F",M41>180),(ROUND(M41/60,2)-3)*I41*$L$17*0.1,"--") -> -- | U41: =IF(N41="R",I41*$L$17*O41/100,"--") -> -- | V41: =IF(AND(M41>10,N41="R"),I41*$L$17*O41/100*IF(M41>180,3,ROUND(M41/60,2)),"--") -> -- | W41: =IF(AND(N41="R",M41>180),(ROUND(M41/60,2)-3)*I41*$L$17*0.1*O41/100,"--") -> -- | X41: =IF(N41="RF",ROUND(M41/60,2)*I41*$L$17*0.1,"--") -> -- | Y41: =IF(N41="RR",ROUND(M41/60,2)*I41*$L$17*0.1*O41/100,"--") -> -- | Z41: =IF(F41="","","SI") -> SI | AA41: 13836.99465
I42: =IF(H42>25,H42,25)*IF(G42=220,$G$16,IF(G42=132,$G$17,$G$18))/100 -> 86.37325 | L42: =IF(F42="","",(K42-J42)*24) ->  | M42: =IF(F42="","",ROUND((K42-J42)*24*60,0)) ->  | O42: =IF(F42="","","--") ->  | P42: =IF(N42="P",ROUND(M42/60,2)*I42*$L$17*0.01,"--") -> -- | Q42: =IF(N42="RP",ROUND(M42/60,2)*I42*$L$17*0.01*O42/100,"--") -> -- | R42: =IF(N42="F",I42*$L$17,"--") -> -- | S42: =IF(AND(M42>10,N42="F"),I42*$L$17*IF(M42>180,3,ROUND(M42/60,2)),"--") -> -- | T42: =IF(AND(N42="F",M42>180),(ROUND(M42/60,2)-3)*I42*$L$17*0.1,"--") -> -- | U42: =IF(N42="R",I42*$L$17*O42/100,"--") -> -- | V42: =IF(AND(M42>10,N42="R"),I42*$L$17*O42/100*IF(M42>180,3,ROUND(M42/60,2)),"--") -> -- | W42: =IF(AND(N42="R",M42>180),(ROUND(M42/60,2)-3)*I42*$L$17*0.1*O42/100,"--") -> -- | X42: =IF(N42="RF",ROUND(M42/60,2)*I42*$L$17*0.1,"--") -> -- | Y42: =IF(N42="RR",ROUND(M42/60,2)*I42*$L$17*0.1*O42/100,"--") -> -- | Z42: =IF(F42="","","SI") -> 
C44: (²) | D44: P - PROGRAMADA ; F - FORZADA ; RF - RESTANTE FORZADA | P44: =SUM(P21:P43) -> 61637.28135 | Q44: =SUM(Q21:Q43) -> 0 | R44: =SUM(R21:R43) -> 164613.596 | S44: 279461.8962 | T44: 168620.7678 | U44: 0 | V44: 0 | W44: 0 | X44: 1082084.076 | Y44: 0 | AA44: =ROUND(SUM(AA21:AA43),2) -> 1756417.62

Sheet LI-DPEC-02 (1)
B2: ='TOT-0216'!B2 -> ANEXO II al Memorandum D.T.E.E. N° 294 / 2017
A4: ENTE NACIONAL REGULADOR
A5: DE LA ELECTRICIDAD
F8: SISTEMA DE TRANSPORTE DE ENERGÍA ELÉCTRICA POR DISTRIBUCIÓN TRONCAL - TRANSNEA S.A.
F10: 1.2.-Transportista Independiente - Dirección Provincial de Energía de Corrientes (D.P.E.C.)
B12: ='TOT-0216'!B14 -> Desde el 01 al 29 de Febrero de 2016
F15: $/100 km-h : LÍNEAS 220 kV | G15: -
F16: $/100 km-h : LÍNEAS 132 kV | G16: 145.147 | K16: FACTOR DE PENALIZACIÓN K = | L16: =30*'TOT-0216'!B13 -> 60 | M16: =IF(L16=30," ",IF(L16=60,"Coeficiente duplicado por tasa de falla >4 Sal. x año/100 km.","REVISAR COEFICIENTE")) -> Coeficiente duplicado por tasa de falla >4 Sal. x año/100 km.
F17: $/100 km-h : LÍNEAS 66 kV | G17: -
C19: 3 | D19: 4 | E19: 5 | F19: 6 | G19: 7 | H19: 8 | I19: 9 | J19: 10 | K19: 11 | L19: 12 | M19: 13 | N19: 14 | O19: 15 | P19: 16 | Q19: 17 | R19: 18 | S19: 19 | T19: 20 | U19: 21 | V19: 22 | W19: 23 | X19: 24 | Y19: 25 | Z19: 26 | AA19: 27
C20: N° | D20: INDISP | E20: ID EQUIPO | F20: LÍNEAS | G20: U [kV] | H20: Long. [km] | I20: $/h | J20: Salida | K20: Entrada | L20: Hs. Indisp. | M20: Minutos Indisp. | N20: Tipo Sal.(²) | O20: C.R. % | P20: PENALIZAC. PROGRAM. | Q20: REDUCC. PROGRAM. | R20: PENALIZACIÓN FORZADA Por Salida 1ras. 3 hs. hs. Restantes | U20: REDUCC. FORZADA Por Salida 1ras. 3 hs. hs. Restantes | X20: RESTANTE FORZADA | Y20: REDUCC. RESTANTE | Z20: Informó enTérm. | AA20: TOTAL PENALIZAC.
C23: 46 | D23: 299321 | E23: 1001 | F23: PASO DE LOS LIBRES - MONTE CASEROS | G23: 132 | H23: 101 | I23: =IF(H23>25,H23,25)*IF(G23=220,$G$15,IF(G23=132,$G$16,$G$17))/100 -> 146.59847 | J23: 2016-02-21T22:33:00 | K23: 2016-02-21T22:41:00 | L23: =IF(F23="","",(K23-J23)*24) -> 0.1333333334 | M23: =IF(F23="","",ROUND((K23-J23)*24*60,0)) -> 8 | N23: F | O23: =IF(F23="","","--") -> -- | P23: =IF(N23="P",ROUND(M23/60,2)*I23*$L$16*0.01,"--") -> -- | Q23: =IF(N23="RP",ROUND(M23/60,2)*I23*$L$16*0.01*O23/100,"--") -> -- | R23: =IF(N23="F",I23*$L$16,"--") -> 8795.9082 | S23: =IF(AND(M23>10,N23="F"),I23*$L$16*IF(M23>180,3,ROUND(M23/60,2)),"--") -> -- | T23: =IF(AND(N23="F",M23>180),(ROUND(M23/60,2)-3)*I23*$L$16*0.1,"--") -> -- | U23: =IF(N23="R",I23*$L$16*O23/100,"--") -> -- | V23: =IF(AND(M23>10,N23="R"),I23*$L$16*O23/100*IF(M23>180,3,ROUND(M23/60,2)),"--") -> -- | W23: =IF(AND(N23="R",M23>180),(ROUND(M23/60,2)-3)*I23*$L$16*0.1*O23/100,"--") -> -- | X23: =IF(N23="RF",ROUND(M23/60,2)*I23*$L$16*0.1,"--") -> -- | Y23: =IF(N23="RR",ROUND(M23/60,2)*I23*$L$16*0.1*O23/100,"--") -> -- | Z23: SI | AA23: =IF(F23="","",SUM(P23:Y23)*IF(Z23="SI",1,2)) -> 8795.9082
I24: =IF(H24>25,H24,25)*IF(G24=220,$G$15,IF(G24=132,$G$16,$G$17))/100 ->  | M24: =IF(F24="","",ROUND((K24-J24)*24*60,0)) ->  | P24: -- | Q24: -- | R24: -- | S24: -- | T24: -- | U24: -- | V24: -- | W24: -- | X24: =IF(N24="RF",ROUND(M24/60,2)*I24*$L$16*0.1,"--") -> -- | Y24: =IF(N24="RR",ROUND(M24/60,2)*I24*$L$16*0.1*O24/100,"--") -> -- | AA24: =IF(F24="","",SUM(P24:Y24)*IF(Z24="SI",1,2)) -> 
P25: -- | Q25: -- | R25: -- | S25: -- | T25: -- | U25: -- | V25: -- | W25: -- | X25: -- | Y25: -- | Z25: =IF(F25="","","SI") -> 
P26: -- | Q26: -- | R26: -- | S26: -- | T26: -- | U26: -- | V26: -- | W26: -- | X26: -- | Y26: --
P27: -- | Q27: -- | R27: -- | S27: -- | T27: -- | U27: -- | V27: -- | W27: -- | X27: -- | Y27: --
P28: -- | Q28: -- | R28: -- | S28: -- | T28: -- | U28: -- | V28: -- | W28: -- | X28: -- | Y28: --
P29: -- | Q29: -- | R29: -- | S29: -- | T29: -- | U29: -- | V29: -- | W29: -- | X29: -- | Y29: --
P30: -- | Q30: -- | R30: -- | S30: -- | T30: -- | U30: -- | V30: -- | W30: -- | X30: -- | Y30: --
P31: -- | Q31: -- | R31: -- | S31: -- | T31: -- | U31: -- | V31: -- | W31: -- | X31: -- | Y31: --
P32: -- | Q32: -- | R32: -- | S32: -- | T32: -- | U32: -- | V32: -- | W32: -- | X32: -- | Y32: --
P33: -- | Q33: -- | R33: -- | S33: -- | T33: -- | U33: -- | V33: -- | W33: -- | X33: -- | Y33: --
P34: -- | Q34: -- | R34: -- | S34: -- | T34: -- | U34: -- | V34: -- | W34: -- | X34: -- | Y34: --
P35: -- | Q35: -- | R35: -- | S35: -- | T35: -- | U35: -- | V35: -- | W35: -- | X35: -- | Y35: --
P36: -- | Q36: -- | R36: -- | S36: -- | T36: -- | U36: -- | V36: -- | W36: -- | X36: -- | Y36: --
P37: -- | Q37: -- | R37: -- | S37: -- | T37: -- | U37: -- | V37: -- | W37: -- | X37: -- | Y37: --
P38: -- | Q38: -- | R38: -- | S38: -- | T38: -- | U38: -- | V38: -- | W38: -- | X38: -- | Y38: --
P39: -- | Q39: -- | R39: -- | S39: -- | T39: -- | U39: -- | V39: -- | W39: -- | X39: -- | Y39: --
I40: =IF(H40>25,H40,25)*IF(G40=220,$G$15,IF(G40=132,$G$16,$G$17))/100 ->  | M40: =IF(F40="","",ROUND((K40-J40)*24*60,0)) ->  | P40: -- | Q40: -- | R40: -- | S40: -- | T40: -- | U40: -- | V40: -- | W40: -- | X40: =IF(N40="RF",ROUND(M40/60,2)*I40*$L$16*0.1,"--") -> -- | Y40: =IF(N40="RR",ROUND(M40/60,2)*I40*$L$16*0.1*O40/100,"--") -> --
I41: =IF(H41>25,H41,25)*IF(G41=220,$G$15,IF(G41=132,$G$16,$G$17))/100 ->  | M41: =IF(F41="","",ROUND((K41-J41)*24*60,0)) ->  | P41: -- | Q41: -- | R41: -- | S41: -- | T41: -- | U41: -- | V41: -- | W41: -- | X41: =IF(N41="RF",ROUND(M41/60,2)*I41*$L$16*0.1,"--") -> -- | Y41: =IF(N41="RR",ROUND(M41/60,2)*I41*$L$16*0.1*O41/100,"--") -> --
I42: =IF(H42>25,H42,25)*IF(G42=220,$G$15,IF(G42=132,$G$16,$G$17))/100 ->  | M42: =IF(F42="","",ROUND((K42-J42)*24*60,0)) ->  | P42: -- | Q42: -- | R42: -- | S42: -- | T42: -- | U42: -- | V42: -- | W42: -- | X42: =IF(N42="RF",ROUND(M42/60,2)*I42*$L$16*0.1,"--") -> -- | Y42: =IF(N42="RR",ROUND(M42/60,2)*I42*$L$16*0.1*O42/100,"--") -> --
C44: (²) | D44: F - FORZADA | P44: =SUM(P21:P43) -> 0 | Q44: 0 | R44: 8795.9082 | S44: 0 | T44: 0 | U44: 0 | V44: 0 | W44: 0 | X44: 0 | Y44: 0 | AA44: =ROUND(SUM(AA21:AA43),2) -> 8795.91

Sheet T-02 (1)
B2: =+'TOT-0216'!B2 -> ANEXO II al Memorandum D.T.E.E. N° 294 / 2017
A4: ENTE NACIONAL REGULADOR
A5: DE LA ELECTRICIDAD
F8: SISTEMA DE TRANSPORTE DE ENERGÍA ELÉCTRICA POR DISTRIBUCIÓN TRONCAL - TRANSNEA S.A.
F10: 2.- CONEXIÓN
F12: 2.1.- Transformación
B14: =+'TOT-0216'!B14 -> Desde el 01 al 29 de Febrero de 2016
F16: Por Transformador [$ / h - MVA] = | I16: 1.235
F17: Coeficiente de penalización por salida forzada = | I17: =30*'TOT-0216'!B13 -> 60 | K17: =IF(I17=30," ",IF(I17=60," Coeficiente duplicado por tasa de falla >4 Sal. x año/100 km."," REVISAR COEFICIENTE")) -> Coeficiente duplicado por tasa de falla >4 Sal. x año/100 km.
C18: 3 | D18: 4 | E18: 5 | F18: 6 | G18: 7 | H18: 8 | I18: 9 | J18: 10 | K18: 11 | L18: 12 | M18: 13 | N18: 14 | O18: 15 | P18: 16 | Q18: 17 | R18: 18 | S18: 19 | T18: 20 | U18: 21 | V18: 22 | W18: 23 | X18: 24 | Y18: 25 | Z18: 26 | AA18: 27 | AB18: 28 | AC18: 29
C19: N° | D19: INDISP | E19: ID EQUIPO | F19: ESTACIÓN TRANSFORMADORA | G19: EQUIPO | H19: POT. [MVA] | I19: U [kV] | J19: $/h | K19: Salida | L19: Entrada | M19: Hs. Indisp. | N19: Mtos. Indisp. | O19: Tipo Sal.(²) | P19: AUT. | Q19: C.R. % | R19: E.N.S. | S19: K (P;ENS) | T19: PENALIZ. PROGRAM. | U19: REDUCC. PROGRAM. | V19: PENALIZACIÓN FORZADA Por Salida hs. Restantes | X19: REDUCC. FORZADA Por Salida hs. Restantes | Z19: RESTANTE FORZADA | AA19: REDUCC. RESTANTE | AB19: Informó enTérm. | AC19: TOTAL PENALIZAC.
C22: 20 | D22: 296361 | E22: 752 | F22: BARRANQUERAS | G22: TRAFO 7 | H22: 30 | I22: 132/33/13,2 | J22: =H22*$I$16 -> 37.05 | K22: 2016-02-01 | L22: 2016-02-19T14:33:00 | M22: =IF(F22="","",(L22-K22)*24) -> 446.55 | N22: =IF(F22="","",ROUND((L22-K22)*24*60,0)) -> 26793 | O22: RP | P22: =IF(F22="","",IF(OR(O22="P",O22="RP"),"--","NO")) -> -- | Q22: 50 | R22: =IF(F22="","","NO") -> NO | S22: =$I$17*IF(OR(O22="P",O22="RP"),0.1,1)*IF(R22="SI",1,0.1) -> 0.6 | T22: =IF(O22="P",J22*S22*ROUND(N22/60,2),"--") -> -- | U22: =IF(O22="RP",J22*S22*ROUND(N22/60,2)*Q22/100,"--") -> 4963.40325 | V22: =IF(AND(O22="F",P22="NO"),J22*S22,"--") -> -- | W22: =IF(O22="F",J22*S22*ROUND(N22/60,2),"--") -> -- | X22: =IF(AND(O22="R",P22="NO"),J22*S22*Q22/100,"--") -> -- | Y22: =IF(O22="R",J22*S22*ROUND(N22/60,2)*Q22/100,"--") -> -- | Z22: =IF(O22="RF",J22*S22*ROUND(N22/60,2),"--") -> -- | AA22: =IF(O22="RR",J22*S22*ROUND(N22/60,2)*Q22/100,"--") -> -- | AB22: SI | AC22: =IF(F22="","",SUM(T22:AA22)*IF(AB22="SI",1,2)) -> 4963.40325
C23: 21 | D23: 298565 | E23: 768 | F23: GOYA | G23: TRAFO 2 | H23: 15 | I23: 132/33/13,2 | J23: =H23*$I$16 -> 18.525 | K23: 2016-02-06T11:14:00 | L23: 2016-02-06T11:38:00 | M23: =IF(F23="","",(L23-K23)*24) -> 0.4000000001 | N23: =IF(F23="","",ROUND((L23-K23)*24*60,0)) -> 24 | O23: F | P23: =IF(F23="","",IF(OR(O23="P",O23="RP"),"--","NO")) -> NO | Q23: 0,000 | R23: SI | S23: =$I$17*IF(OR(O23="P",O23="RP"),0.1,1)*IF(R23="SI",1,0.1) -> 60 | T23: =IF(O23="P",J23*S23*ROUND(N23/60,2),"--") -> -- | U23: =IF(O23="RP",J23*S23*ROUND(N23/60,2)*Q23/100,"--") -> -- | V23: =IF(AND(O23="F",P23="NO"),J23*S23,"--") -> 1111.5 | W23: =IF(O23="F",J23*S23*ROUND(N23/60,2),"--") -> 444.6 | X23: =IF(AND(O23="R",P23="NO"),J23*S23*Q23/100,"--") -> -- | Y23: =IF(O23="R",J23*S23*ROUND(N23/60,2)*Q23/100,"--") -> -- | Z23: =IF(O23="RF",J23*S23*ROUND(N23/60,2),"--") -> -- | AA23: =IF(O23="RR",J23*S23*ROUND(N23/60,2)*Q23/100,"--") -> -- | AB23: SI | AC23: =IF(F23="","",SUM(T23:AA23)*IF(AB23="SI",1,2)) -> 1556.1
C24: 21a | D24: 298565 | E24: 768 | F24: GOYA | G24: TRAFO 2 | H24: 15 | I24: 132/33/13,2 | J24: =H24*$I$16 -> 18.525 | K24: 2016-02-06T11:38:00 | L24: 2016-02-06T14:32:00 | M24: =IF(F24="","",(L24-K24)*24) -> 2.9 | N24: =IF(F24="","",ROUND((L24-K24)*24*60,0)) -> 174 | O24: RF | P24: =IF(F24="","",IF(OR(O24="P",O24="RP"),"--","NO")) -> NO | Q24: 0,000 | R24: NO | S24: =$I$17*IF(OR(O24="P",O24="RP"),0.1,1)*IF(R24="SI",1,0.1) -> 6 | T24: =IF(O24="P",J24*S24*ROUND(N24/60,2),"--") -> -- | U24: =IF(O24="RP",J24*S24*ROUND(N24/60,2)*Q24/100,"--") -> -- | V24: =IF(AND(O24="F",P24="NO"),J24*S24,"--") -> -- | W24: =IF(O24="F",J24*S24*ROUND(N24/60,2),"--") -> -- | X24: =IF(AND(O24="R",P24="NO"),J24*S24*Q24/100,"--") -> -- | Y24: =IF(O24="R",J24*S24*ROUND(N24/60,2)*Q24/100,"--") -> -- | Z24: =IF(O24="RF",J24*S24*ROUND(N24/60,2),"--") -> 322.335 | AA24: =IF(O24="RR",J24*S24*ROUND(N24/60,2)*Q24/100,"--") -> -- | AB24: SI | AC24: =IF(F24="","",SUM(T24:AA24)*IF(AB24="SI",1,2)) -> 322.335
C25: 22 | D25: 298569 | E25: 759 | F25: CORRIENTES | G25: TRAFO 3 | H25: 30 | I25: 132/33/13,2 | J25: 37.05 | K25: 2016-02-07T03:38:00 | L25: 2016-02-07T04:29:00 | M25: 0.85 | N25: 51 | O25: R | P25: NO | Q25: 60 | R25: SI | S25: 60 | T25: -- | U25: -- | V25: -- | W25: -- | X25: 1333.8 | Y25: 1133.73 | Z25: -- | AA25: -- | AB25: SI | AC25: 2467.53
C26: 23 | D26: 298570 | E26: 3625 | F26: CORRIENTES | G26: TRAFO 4 | H26: 50 | I26: 132/33/13,2 | J26: 61.75 | K26: 2016-02-07T03:38:00 | L26: 2016-02-07T04:29:00 | M26: 0.85 | N26: 51 | O26: R | P26: NO | Q26: 60 | R26: SI | S26: 60 | T26: -- | U26: -- | V26: -- | W26: -- | X26: 2223 | Y26: 1889.55 | Z26: -- | AA26: -- | AB26: SI | AC26: 4112.55
C27: 24 | D27: 298739 | E27: 4263 | F27: BELLA VISTA | G27: TRAFO 3 | H27: 7.5 | I27: 132/33/13.2 | J27: 9.2625 | K27: 2016-02-11T01:57:00 | L27: 2016-02-11T02:04:00 | M27: 0.1166666665 | N27: 7 | O27: F | P27: NO | Q27: 0,000 | R27: SI | S27: 60 | T27: -- | U27: -- | V27: 555.75 | W27: 66.69 | X27: -- | Y27: -- | Z27: -- | AA27: -- | AB27: SI | AC27: 622.44
C28: 25 | D28: 299160 | E28: 4866 | F28: CLORINDA | G28: TRAFO 3 | H28: 150 | I28: 220/132/13,2 | J28: 185.25 | K28: 2016-02-18T23:51:00 | L28: 2016-02-19T00:35:00 | M28: 0.7333333333 | N28: 44 | O28: F | P28: NO | Q28: 0,000 | R28: SI | S28: 60 | T28: -- | U28: -- | V28: 11115 | W28: 8113.95 | X28: -- | Y28: -- | Z28: -- | AA28: -- | AB28: SI | AC28: 19228.95
C29: 26 | D29: 299243 | E29: 771 | F29: SANTA CATALINA | G29: TRAFO 1 | H29: 30 | I29: 132/33/13,2 | J29: 37.05 | K29: 2016-02-19T13:59:00 | L29: 2016-02-19T17:35:00 | M29: 3.6 | N29: 216 | O29: F | P29: NO | Q29: 0,000 | R29: SI | S29: 60 | T29: -- | U29: -- | V29: 2223 | W29: 8002.8 | X29: -- | Y29: -- | Z29: -- | AA29: -- | AB29: SI | AC29: 10225.8
C30: 26a | D30: 299243 | E30: 771 | F30: SANTA CATALINA | G30: TRAFO 1 | H30: 30 | I30: 132/33/13,2 | J30: =H30*$I$16 -> 37.05 | K30: 2016-02-19T17:35:00 | L30: 2016-02-29T23:59:00 | M30: =IF(F30="","",(L30-K30)*24) -> 246.4 | N30: =IF(F30="","",ROUND((L30-K30)*24*60,0)) -> 14784 | O30: RF | P30: =IF(F30="","",IF(OR(O30="P",O30="RP"),"--","NO")) -> NO | Q30: 0,000 | R30: NO | S30: =$I$17*IF(OR(O30="P",O30="RP"),0.1,1)*IF(R30="SI",1,0.1) -> 6 | T30: =IF(O30="P",J30*S30*ROUND(N30/60,2),"--") -> -- | U30: =IF(O30="RP",J30*S30*ROUND(N30/60,2)*Q30/100,"--") -> -- | V30: =IF(AND(O30="F",P30="NO"),J30*S30,"--") -> -- | W30: =IF(O30="F",J30*S30*ROUND(N30/60,2),"--") -> -- | X30: =IF(AND(O30="R",P30="NO"),J30*S30*Q30/100,"--") -> -- | Y30: =IF(O30="R",J30*S30*ROUND(N30/60,2)*Q30/100,"--") -> -- | Z30: =IF(O30="RF",J30*S30*ROUND(N30/60,2),"--") -> 54774.72 | AA30: =IF(O30="RR",J30*S30*ROUND(N30/60,2)*Q30/100,"--") -> -- | AB30: SI | AC30: =IF(F30="","",SUM(T30:AA30)*IF(AB30="SI",1,2)) -> 54774.72
C31: 27 | D31: 299244 | E31: 772 | F31: SANTA CATALINA | G31: TRAFO 2 | H31: 30 | I31: 132/33/13,2 | J31: 37.05 | K31: 2016-02-19T13:59:00 | L31: 2016-02-19T17:35:00 | M31: 3.6 | N31: 216 | O31: F | P31: NO | Q31: 0,000 | R31: SI | S31: 60 | T31: -- | U31: -- | V31: 2223 | W31: 8002.8 | X31: -- | Y31: -- | Z31: -- | AA31: -- | AB31: SI | AC31: 10225.8
C32: 28 | D32: 299245 | E32: 773 | F32: SANTA CATALINA | G32: TRAFO 3 | H32: 30 | I32: 132/33/13,2 | J32: 37.05 | K32: 2016-02-19T13:59:00 | L32: 2016-02-19T17:35:00 | M32: 3.6 | N32: 216 | O32: F | P32: NO | Q32: 0,000 | R32: SI | S32: 60 | T32: -- | U32: -- | V32: 2223 | W32: 8002.8 | X32: -- | Y32: -- | Z32: -- | AA32: -- | AB32: SI | AC32: 10225.8
C33: 29 | D33: 299246 | E33: 4072 | F33: SANTA CATALINA | G33: TRAFO 4 | H33: 30 | I33: 132/33/13,2 | J33: 37.05 | K33: 2016-02-19T13:59:00 | L33: 2016-02-19T17:37:00 | M33: 3.633333333 | N33: 218 | O33: F | P33: NO | Q33: 0,000 | R33: SI | S33: 60 | T33: -- | U33: -- | V33: 2223 | W33: 8069.49 | X33: -- | Y33: -- | Z33: -- | AA33: -- | AB33: SI | AC33: 10292.49
C34: 30 | D34: 299247 | E34: 4719 | F34: SANTA CATALINA | G34: TRAFO 5 | H34: 30 | I34: 132/33/13.2 | J34: 37.05 | K34: 2016-02-19T13:59:00 | L34: 2016-02-19T17:35:00 | M34: 3.6 | N34: 216 | O34: F | P34: NO | Q34: 0,000 | R34: SI | S34: 60 | T34: -- | U34: -- | V34: 2223 | W34: 8002.8 | X34: -- | Y34: -- | Z34: -- | AA34: -- | AB34: SI | AC34: 10225.8
C35: 31 | D35: 299125 | E35: 752 | F35: BARRANQUERAS | G35: TRAFO 7 | H35: 30 | I35: 132/33/13,2 | J35: 37.05 | K35: 2016-02-19T17:37:00 | L35: 2016-02-29T23:59:00 | M35: 246.3666667 | N35: 14782 | O35: RP | P35: -- | Q35: 50 | R35: NO | S35: 0.6 | T35: -- | U35: 2738.40255 | V35: -- | W35: -- | X35: -- | Y35: -- | Z35: -- | AA35: -- | AB35: SI | AC35: 2738.40255
C36: 32 | D36: 299596 | E36: 4263 | F36: BELLA VISTA | G36: TRAFO 3 | H36: 7.5 | I36: 132/33/13.2 | J36: 9.2625 | K36: 2016-02-24T15:18:00 | L36: 2016-02-24T15:23:00 | M36: 0.08333333343 | N36: 5 | O36: R | P36: NO | Q36: 60 | R36: SI | S36: 60 | T36: -- | U36: -- | V36: -- | W36: -- | X36: 333.45 | Y36: 26.676 | Z36: -- | AA36: -- | AB36: SI | AC36: 360.126
C37: 33 | D37: 299599 | E37: 759 | F37: CORRIENTES | G37: TRAFO 3 | H37: 30 | I37: 132/33/13,2 | J37: 37.05 | K37: 2016-02-25T02:06:00 | L37: 2016-02-25T02:48:00 | M37: 0.7 | N37: 42 | O37: F | P37: NO | Q37: 0,000 | R37: SI | S37: 60 | T37: -- | U37: -- | V37: 2223 | W37: 1556.1 | X37: -- | Y37: -- | Z37: -- | AA37: -- | AB37: SI | AC37: 3779.1
C38: 33a | D38: 299599 | E38: 759 | F38: CORRIENTES | G38: TRAFO 3 | H38: 30 | I38: 132/33/13,2 | J38: =H38*$I$16 -> 37.05 | K38: 2016-02-25T02:48:00 | L38: 2016-02-25T06:49:00 | M38: =IF(F38="","",(L38-K38)*24) -> 4.016666667 | N38: =IF(F38="","",ROUND((L38-K38)*24*60,0)) -> 241 | O38: RF | P38: =IF(F38="","",IF(OR(O38="P",O38="RP"),"--","NO")) -> NO | Q38: 0,000 | R38: NO | S38: =$I$17*IF(OR(O38="P",O38="RP"),0.1,1)*IF(R38="SI",1,0.1) -> 6 | T38: =IF(O38="P",J38*S38*ROUND(N38/60,2),"--") -> -- | U38: =IF(O38="RP",J38*S38*ROUND(N38/60,2)*Q38/100,"--") -> -- | V38: =IF(AND(O38="F",P38="NO"),J38*S38,"--") -> -- | W38: =IF(O38="F",J38*S38*ROUND(N38/60,2),"--") -> -- | X38: =IF(AND(O38="R",P38="NO"),J38*S38*Q38/100,"--") -> -- | Y38: =IF(O38="R",J38*S38*ROUND(N38/60,2)*Q38/100,"--") -> -- | Z38: =IF(O38="RF",J38*S38*ROUND(N38/60,2),"--") -> 893.646 | AA38: =IF(O38="RR",J38*S38*ROUND(N38/60,2)*Q38/100,"--") -> -- | AB38: SI | AC38: =IF(F38="","",SUM(T38:AA38)*IF(AB38="SI",1,2)) -> 893.646
C39: 34 | D39: 299600 | E39: 3625 | F39: CORRIENTES | G39: TRAFO 4 | H39: 50 | I39: 132/33/13,2 | J39: 61.75 | K39: 2016-02-25T02:06:00 | L39: 2016-02-25T02:48:00 | M39: 0.7 | N39: 42 | O39: R | P39: NO | Q39: 60 | R39: SI | S39: 60 | T39: -- | U39: -- | V39: -- | W39: -- | X39: 2223 | Y39: 1556.1 | Z39: -- | AA39: -- | AB39: SI | AC39: 3779.1
C40: 35 | D40: 299618 | E40: 3625 | F40: CORRIENTES | G40: TRAFO 4 | H40: 50 | I40: 132/33/13,2 | J40: 61.75 | K40: 2016-02-25T04:51:00 | L40: 2016-02-25T05:04:00 | M40: 0.2166666667 | N40: 13 | O40: R | P40: NO | Q40: 60 | R40: SI | S40: 60 | T40: -- | U40: -- | V40: -- | W40: -- | X40: 2223 | Y40: 489.06 | Z40: -- | AA40: -- | AB40: SI | AC40: 2712.06
C41: 36 | D41: 299636 | E41: 772 | F41: SANTA CATALINA | G41: TRAFO 2 | H41: 30 | I41: 132/33/13,2 | J41: 37.05 | K41: 2016-02-26T20:35:00 | L41: 2016-02-26T22:28:00 | M41: 1.883333333 | N41: 113 | O41: R | P41: NO | Q41: 40 | R41: SI | S41: 60 | T41: -- | U41: -- | V41: -- | W41: -- | X41: 889.2 | Y41: 1671.696 | Z41: -- | AA41: -- | AB41: SI | AC41: 2560.896
C42: 37 | D42: 299637 | E42: 4072 | F42: SANTA CATALINA | G42: TRAFO 4 | H42: 30 | I42: 132/33/13,2 | J42: =H42*$I$16 -> 37.05 | K42: 2016-02-26T20:35:00 | L42: 2016-02-26T22:28:00 | M42: =IF(F42="","",(L42-K42)*24) -> 1.883333333 | N42: =IF(F42="","",ROUND((L42-K42)*24*60,0)) -> 113 | O42: R | P42: NO | Q42: 60 | R42: SI | S42: =$I$17*IF(OR(O42="P",O42="RP"),0.1,1)*IF(R42="SI",1,0.1) -> 60 | T42: =IF(O42="P",J42*S42*ROUND(N42/60,2),"--") -> -- | U42: =IF(O42="RP",J42*S42*ROUND(N42/60,2)*Q42/100,"--") -> -- | V42: =IF(AND(O42="F",P42="NO"),J42*S42,"--") -> -- | W42: =IF(O42="F",J42*S42*ROUND(N42/60,2),"--") -> -- | X42: =IF(AND(O42="R",P42="NO"),J42*S42*Q42/100,"--") -> 1333.8 | Y42: =IF(O42="R",J42*S42*ROUND(N42/60,2)*Q42/100,"--") -> 2507.544 | Z42: =IF(O42="RF",J42*S42*ROUND(N42/60,2),"--") -> -- | AA42: =IF(O42="RR",J42*S42*ROUND(N42/60,2)*Q42/100,"--") -> -- | AB42: SI | AC42: 3841.344
C43: 38 | D43: 299638 | E43: 4719 | F43: SANTA CATALINA | G43: TRAFO 5 | H43: 30 | I43: 132/33/13.2 | J43: =H43*$I$16 -> 37.05 | K43: 2016-02-26T20:35:00 | L43: 2016-02-26T22:28:00 | M43: =IF(F43="","",(L43-K43)*24) -> 1.883333333 | N43: =IF(F43="","",ROUND((L43-K43)*24*60,0)) -> 113 | O43: R | P43: NO | Q43: 50 | R43: SI | S43: =$I$17*IF(OR(O43="P",O43="RP"),0.1,1)*IF(R43="SI",1,0.1) -> 60 | T43: =IF(O43="P",J43*S43*ROUND(N43/60,2),"--") -> -- | U43: =IF(O43="RP",J43*S43*ROUND(N43/60,2)*Q43/100,"--") -> -- | V43: =IF(AND(O43="F",P43="NO"),J43*S43,"--") -> -- | W43: =IF(O43="F",J43*S43*ROUND(N43/60,2),"--") -> -- | X43: =IF(AND(O43="R",P43="NO"),J43*S43*Q43/100,"--") -> 1111.5 | Y43: =IF(O43="R",J43*S43*ROUND(N43/60,2)*Q43/100,"--") -> 2089.62 | Z43: =IF(O43="RF",J43*S43*ROUND(N43/60,2),"--") -> -- | AA43: =IF(O43="RR",J43*S43*ROUND(N43/60,2)*Q43/100,"--") -> -- | AB43: SI | AC43: 3201.12
J44: =H44*$I$16 -> 0 | M44: =IF(F44="","",(L44-K44)*24) ->  | N44: =IF(F44="","",ROUND((L44-K44)*24*60,0)) ->  | Q44: =IF(F44="","","--") ->  | R44: =IF(F44="","","NO") ->  | S44: =$I$17*IF(OR(O44="P",O44="RP"),0.1,1)*IF(R44="SI",1,0.1) -> 6 | T44: =IF(O44="P",J44*S44*ROUND(N44/60,2),"--") -> -- | U44: =IF(O44="RP",J44*S44*ROUND(N44/60,2)*Q44/100,"--") -> -- | V44: =IF(AND(O44="F",P44="NO"),J44*S44,"--") -> -- | W44: =IF(O44="F",J44*S44*ROUND(N44/60,2),"--") -> -- | X44: =IF(AND(O44="R",P44="NO"),J44*S44*Q44/100,"--") -> -- | Y44: =IF(O44="R",J44*S44*ROUND(N44/60,2)*Q44/100,"--") -> -- | Z44: =IF(O44="RF",J44*S44*ROUND(N44/60,2),"--") -> -- | AA44: =IF(O44="RR",J44*S44*ROUND(N44/60,2)*Q44/100,"--") -> -- | AB44: =IF(F44="","","SI") -> 
C46: (²) | D46: F - FORZADA ; RP - REDUCCIÓN PROGRAMADA ; R - REDUCCIÓN FORZADA ; RF - RESTANTE FORZADA | T46: =SUM(T20:T45) -> 0 | U46: =SUM(U20:U45) -> 7701.8058 | V46: 26120.25 | W46: 50262.03 | X46: 11670.75 | Y46: 11363.976 | Z46: 55990.701 | AA46: 0 | AC46: =ROUND(SUM(AC20:AC45),2) -> 163109.51

Sheet T-02 (2)
B2: =+'TOT-0216'!B2 -> ANEXO II al Memorandum D.T.E.E. N° 294 / 2017
A4: ENTE NACIONAL REGULADOR
A5: DE LA ELECTRICIDAD
F8: SISTEMA DE TRANSPORTE DE ENERGÍA ELÉCTRICA POR DISTRIBUCIÓN TRONCAL - TRANSNEA S.A.
F10: 2.- CONEXIÓN
F12: 2.1.- Transformación
B14: =+'TOT-0216'!B14 -> Desde el 01 al 29 de Febrero de 2016
F16: Por Transformador [$ / h - MVA] = | I16: 1.235
F17: Coeficiente de penalización por salida forzada = | I17: =30*'TOT-0216'!B13 -> 60 | K17: =IF(I17=30," ",IF(I17=60," Coeficiente duplicado por tasa de falla >4 Sal. x año/100 km."," REVISAR COEFICIENTE")) -> Coeficiente duplicado por tasa de falla >4 Sal. x año/100 km.
C18: 3 | D18: 4 | E18: 5 | F18: 6 | G18: 7 | H18: 8 | I18: 9 | J18: 10 | K18: 11 | L18: 12 | M18: 13 | N18: 14 | O18: 15 | P18: 16 | Q18: 17 | R18: 18 | S18: 19 | T18: 20 | U18: 21 | V18: 22 | W18: 23 | X18: 24 | Y18: 25 | Z18: 26 | AA18: 27 | AB18: 28 | AC18: 29
C19: N° | D19: INDISP | E19: ID EQUIPO | F19: ESTACIÓN TRANSFORMADORA | G19: EQUIPO | H19: POT. [MVA] | I19: U [kV] | J19: $/h | K19: Salida | L19: Entrada | M19: Hs. Indisp. | N19: Mtos. Indisp. | O19: Tipo Sal.(²) | P19: AUT. | Q19: C.R. % | R19: E.N.S. | S19: K (P;ENS) | T19: PENALIZ. PROGRAM. | U19: REDUCC. PROGRAM. | V19: PENALIZACIÓN FORZADA Por Salida hs. Restantes | X19: REDUCC. FORZADA Por Salida hs. Restantes | Z19: RESTANTE FORZADA | AA19: REDUCC. RESTANTE | AB19: Informó enTérm. | AC19: TOTAL PENALIZAC.
AC20: ='T-02 (1)'!AC46 -> 163109.51
C22: 39 | D22: 299646 | E22: 772 | F22: SANTA CATALINA | G22: TRAFO 2 | H22: 30 | I22: 132/33/13,2 | J22: =H22*$I$16 -> 37.05 | K22: 2016-02-29T14:07:00 | L22: 2016-02-29T14:21:00 | M22: =IF(F22="","",(L22-K22)*24) -> 0.2333333334 | N22: =IF(F22="","",ROUND((L22-K22)*24*60,0)) -> 14 | O22: R | P22: =IF(F22="","",IF(OR(O22="P",O22="RP"),"--","NO")) -> NO | Q22: 40 | R22: SI | S22: =$I$17*IF(OR(O22="P",O22="RP"),0.1,1)*IF(R22="SI",1,0.1) -> 60 | T22: =IF(O22="P",J22*S22*ROUND(N22/60,2),"--") -> -- | U22: =IF(O22="RP",J22*S22*ROUND(N22/60,2)*Q22/100,"--") -> -- | V22: =IF(AND(O22="F",P22="NO"),J22*S22,"--") -> -- | W22: =IF(O22="F",J22*S22*ROUND(N22/60,2),"--") -> -- | X22: =IF(AND(O22="R",P22="NO"),J22*S22*Q22/100,"--") -> 889.2 | Y22: =IF(O22="R",J22*S22*ROUND(N22/60,2)*Q22/100,"--") -> 204.516 | Z22: =IF(O22="RF",J22*S22*ROUND(N22/60,2),"--") -> -- | AA22: =IF(O22="RR",J22*S22*ROUND(N22/60,2)*Q22/100,"--") -> -- | AB22: SI | AC22: =IF(F22="","",SUM(T22:AA22)*IF(AB22="SI",1,2)) -> 1093.716
C23: 40 | D23: 299647 | E23: 4072 | F23: SANTA CATALINA | G23: TRAFO 4 | H23: 30 | I23: 132/33/13,2 | J23: =H23*$I$16 -> 37.05 | K23: 2016-02-29T14:07:00 | L23: 2016-02-29T14:21:00 | M23: =IF(F23="","",(L23-K23)*24) -> 0.2333333334 | N23: =IF(F23="","",ROUND((L23-K23)*24*60,0)) -> 14 | O23: R | P23: =IF(F23="","",IF(OR(O23="P",O23="RP"),"--","NO")) -> NO | Q23: 60 | R23: SI | S23: =$I$17*IF(OR(O23="P",O23="RP"),0.1,1)*IF(R23="SI",1,0.1) -> 60 | T23: =IF(O23="P",J23*S23*ROUND(N23/60,2),"--") -> -- | U23: =IF(O23="RP",J23*S23*ROUND(N23/60,2)*Q23/100,"--") -> -- | V23: =IF(AND(O23="F",P23="NO"),J23*S23,"--") -> -- | W23: =IF(O23="F",J23*S23*ROUND(N23/60,2),"--") -> -- | X23: =IF(AND(O23="R",P23="NO"),J23*S23*Q23/100,"--") -> 1333.8 | Y23: =IF(O23="R",J23*S23*ROUND(N23/60,2)*Q23/100,"--") -> 306.774 | Z23: =IF(O23="RF",J23*S23*ROUND(N23/60,2),"--") -> -- | AA23: =IF(O23="RR",J23*S23*ROUND(N23/60,2)*Q23/100,"--") -> -- | AB23: SI | AC23: =IF(F23="","",SUM(T23:AA23)*IF(AB23="SI",1,2)) -> 1640.574
C24: 41 | D24: 299648 | E24: 4719 | F24: SANTA CATALINA | G24: TRAFO 5 | H24: 30 | I24: 132/33/13.2 | J24: 37.05 | K24: 2016-02-29T14:07:00 | L24: 2016-02-29T14:21:00 | M24: 0.2333333334 | N24: 14 | O24: R | P24: NO | Q24: 50 | R24: SI | S24: 60 | T24: -- | U24: -- | V24: -- | W24: -- | X24: 1111.5 | Y24: 255.645 | Z24: -- | AA24: -- | AB24: SI | AC24: 1367.145
C25: 42 | D25: 298565b | E25: 768 | F25: GOYA | G25: TRAFO 2 | H25: 15 | I25: 132/33/13,2 | J25: 18.525 | K25: 2016-02-06T11:39:00 | L25: 2016-02-06T14:32:00 | M25: 2.883333333 | N25: 173 | O25: F | P25: =IF(F25="","",IF(OR(O25="P",O25="RP"),"--","NO")) -> NO | Q25: =IF(F25="","","--") -> -- | R25: NO | S25: =$I$17*IF(OR(O25="P",O25="RP"),0.1,1)*IF(R25="SI",1,0.1) -> 6 | T25: =IF(O25="P",J25*S25*ROUND(N25/60,2),"--") -> -- | U25: =IF(O25="RP",J25*S25*ROUND(N25/60,2)*Q25/100,"--") -> -- | V25: =IF(AND(O25="F",P25="NO"),J25*S25,"--") -> 111.15 | W25: =IF(O25="F",J25*S25*ROUND(N25/60,2),"--") -> 320.112 | X25: =IF(AND(O25="R",P25="NO"),J25*S25*Q25/100,"--") -> -- | Y25: =IF(O25="R",J25*S25*ROUND(N25/60,2)*Q25/100,"--") -> -- | Z25: =IF(O25="RF",J25*S25*ROUND(N25/60,2),"--") -> -- | AA25: =IF(O25="RR",J25*S25*ROUND(N25/60,2)*Q25/100,"--") -> -- | AB25: =IF(F25="","","SI") -> SI | AC25: 431.262
C26: 43 | D26: 299243b | E26: 771 | F26: SANTA CATALINA | G26: TRAFO 1 | H26: 30 | I26: 132/33/13,2 | J26: 37.05 | K26: 2016-02-19T17:39:00 | L26: 2016-02-29T23:59:00 | M26: 246.3333333 | N26: 14780 | O26: F | P26: NO | Q26: -- | R26: =IF(F26="","","NO") -> NO | S26: 6 | T26: -- | U26: -- | V26: 222.3 | W26: 54759.159 | X26: -- | Y26: -- | Z26: -- | AA26: -- | AB26: SI | AC26: 54981.459
C27: 44 | D27: 299599b | E27: 759 | F27: CORRIENTES | G27: TRAFO 3 | H27: 30 | I27: 132/33/13,2 | J27: 37.05 | K27: 2016-02-25T02:49:00 | L27: 2016-02-25T06:49:00 | M27: 4 | N27: 240 | O27: F | P27: NO | Q27: -- | R27: NO | S27: 6 | T27: -- | U27: -- | V27: 222.3 | W27: 889.2 | X27: -- | Y27: -- | Z27: -- | AA27: -- | AB27: SI | AC27: 1111.5
J28: 0 | S28: 6 | T28: -- | U28: -- | V28: -- | W28: -- | X28: -- | Y28: -- | Z28: -- | AA28: --
J29: 0 | S29: 6 | T29: -- | U29: -- | V29: -- | W29: -- | X29: -- | Y29: -- | Z29: -- | AA29: --
J30: 0 | S30: 6 | T30: -- | U30: -- | V30: -- | W30: -- | X30: -- | Y30: -- | Z30: -- | AA30: --
J31: 0 | Q31: =IF(F31="","","--") ->  | R31: =IF(F31="","","NO") ->  | S31: 6 | T31: -- | U31: -- | V31: -- | W31: -- | X31: -- | Y31: -- | Z31: -- | AA31: -- | AB31: =IF(F31="","","SI") -> 
J32: 0 | S32: 6 | T32: -- | U32: -- | V32: -- | W32: -- | X32: -- | Y32: -- | Z32: -- | AA32: --
J33: 0 | S33: 6 | T33: -- | U33: -- | V33: -- | W33: -- | X33: -- | Y33: -- | Z33: -- | AA33: --
J34: 0 | S34: 6 | T34: -- | U34: -- | V34: -- | W34: -- | X34: -- | Y34: -- | Z34: -- | AA34: --
J35: 0 | S35: 6 | T35: -- | U35: -- | V35: -- | W35: -- | X35: -- | Y35: -- | Z35: -- | AA35: --
J36: 0 | S36: 6 | T36: -- | U36: -- | V36: -- | W36: -- | X36: -- | Y36: -- | Z36: -- | AA36: --
J37: 0 | S37: 6 | T37: -- | U37: -- | V37: -- | W37: -- | X37: -- | Y37: -- | Z37: -- | AA37: --
J38: 0 | S38: 6 | T38: -- | U38: -- | V38: -- | W38: -- | X38: -- | Y38: -- | Z38: -- | AA38: --
J39: =H39*$I$16 -> 0 | M39: =IF(F39="","",(L39-K39)*24) ->  | N39: =IF(F39="","",ROUND((L39-K39)*24*60,0)) ->  | Q39: =IF(F39="","","--") ->  | R39: =IF(F39="","","NO") ->  | S39: =$I$17*IF(OR(O39="P",O39="RP"),0.1,1)*IF(R39="SI",1,0.1) -> 6 | T39: =IF(O39="P",J39*S39*ROUND(N39/60,2),"--") -> -- | U39: =IF(O39="RP",J39*S39*ROUND(N39/60,2)*Q39/100,"--") -> -- | V39: =IF(AND(O39="F",P39="NO"),J39*S39,"--") -> -- | W39: =IF(O39="F",J39*S39*ROUND(N39/60,2),"--") -> -- | X39: =IF(AND(O39="R",P39="NO"),J39*S39*Q39/100,"--") -> -- | Y39: =IF(O39="R",J39*S39*ROUND(N39/60,2)*Q39/100,"--") -> -- | Z39: =IF(O39="RF",J39*S39*ROUND(N39/60,2),"--") -> -- | AA39: =IF(O39="RR",J39*S39*ROUND(N39/60,2)*Q39/100,"--") -> -- | AB39: =IF(F39="","","SI") -> 
J40: =H40*$I$16 -> 0 | M40: =IF(F40="","",(L40-K40)*24) ->  | N40: =IF(F40="","",ROUND((L40-K40)*24*60,0)) ->  | Q40: =IF(F40="","","--") ->  | R40: =IF(F40="","","NO") ->  | S40: =$I$17*IF(OR(O40="P",O40="RP"),0.1,1)*IF(R40="SI",1,0.1) -> 6 | T40: =IF(O40="P",J40*S40*ROUND(N40/60,2),"--") -> -- | U40: =IF(O40="RP",J40*S40*ROUND(N40/60,2)*Q40/100,"--") -> -- | V40: =IF(AND(O40="F",P40="NO"),J40*S40,"--") -> -- | W40: =IF(O40="F",J40*S40*ROUND(N40/60,2),"--") -> -- | X40: =IF(AND(O40="R",P40="NO"),J40*S40*Q40/100,"--") -> -- | Y40: =IF(O40="R",J40*S40*ROUND(N40/60,2)*Q40/100,"--") -> -- | Z40: =IF(O40="RF",J40*S40*ROUND(N40/60,2),"--") -> -- | AA40: =IF(O40="RR",J40*S40*ROUND(N40/60,2)*Q40/100,"--") -> -- | AB40: =IF(F40="","","SI") -> 
J41: =H41*$I$16 -> 0 | M41: =IF(F41="","",(L41-K41)*24) ->  | N41: =IF(F41="","",ROUND((L41-K41)*24*60,0)) ->  | Q41: =IF(F41="","","--") ->  | R41: =IF(F41="","","NO") ->  | S41: =$I$17*IF(OR(O41="P",O41="RP"),0.1,1)*IF(R41="SI",1,0.1) -> 6 | T41: =IF(O41="P",J41*S41*ROUND(N41/60,2),"--") -> -- | U41: =IF(O41="RP",J41*S41*ROUND(N41/60,2)*Q41/100,"--") -> -- | V41: =IF(AND(O41="F",P41="NO"),J41*S41,"--") -> -- | W41: =IF(O41="F",J41*S41*ROUND(N41/60,2),"--") -> -- | X41: =IF(AND(O41="R",P41="NO"),J41*S41*Q41/100,"--") -> -- | Y41: =IF(O41="R",J41*S41*ROUND(N41/60,2)*Q41/100,"--") -> -- | Z41: =IF(O41="RF",J41*S41*ROUND(N41/60,2),"--") -> -- | AA41: =IF(O41="RR",J41*S41*ROUND(N41/60,2)*Q41/100,"--") -> -- | AB41: =IF(F41="","","SI") -> 
C43: (²) | D43: R - REDUCCIÓN FORZADA | T43: =SUM(T20:T42) -> 0 | U43: =SUM(U20:U42) -> 0 | V43: 555.75 | W43: 55968.471 | X43: 3334.5 | Y43: 766.935 | Z43: 0 | AA43: 0 | AC43: =ROUND(SUM(AC20:AC42),2) -> 223735.17

Sheet SA-12 (1)
B2: ='TOT-0216'!B2 -> ANEXO II al Memorandum D.T.E.E. N° 294 / 2017
A4: ENTE NACIONAL REGULADOR
A5: DE LA ELECTRICIDAD
F8: SISTEMA DE TRANSPORTE DE ENERGÍA ELÉCTRICA POR DISTRIBUCIÓN TRONCAL - TRANSNEA S.A.
F10: 2.2.- Salidas
B12: ='TOT-0216'!B14 -> Desde el 01 al 29 de Febrero de 2016
F14: Salida en 220 kV | G14: - | H14: =60*'TOT-0216'!B13 -> 120 | J14: =IF(H14=60," ",IF(H14=120," Coeficiente duplicado por tasa de falla >4 Sal. x año/100 km."," REVISAR COEFICIENTE")) -> Coeficiente duplicado por tasa de falla >4 Sal. x año/100 km.
F15: Salida en 132 kV o 66 kV = | G15: 16.043 | H15: =50*'TOT-0216'!B13 -> 100 | J15: =IF(H15=50," ",IF(H15=100," Coeficiente duplicado por tasa de falla >4 Sal. x año/100 km."," REVISAR COEFICIENTE")) -> Coeficiente duplicado por tasa de falla >4 Sal. x año/100 km.
F16: Salida en 33 kV | G16: 12.029 | H16: =25*'TOT-0216'!B13 -> 50 | J16: =IF(H16=25," ",IF(H16=50," Coeficiente duplicado por tasa de falla >4 Sal. x año/100 km."," REVISAR COEFICIENTE")) -> Coeficiente duplicado por tasa de falla >4 Sal. x año/100 km.
F17: Salida en 13,2 kV = | G17: 12.029 | H17: =20*'TOT-0216'!B13 -> 40 | J17: =IF(H17=20," ",IF(H17=40," Coeficiente duplicado por tasa de falla >4 Sal. x año/100 km."," REVISAR COEFICIENTE")) -> Coeficiente duplicado por tasa de falla >4 Sal. x año/100 km.
C18: 3 | D18: 4 | E18: 5 | F18: 6 | G18: 7 | H18: 8 | I18: 9 | J18: 10 | K18: 11 | L18: 12 | M18: 13 | N18: 14 | O18: 15 | P18: 16 | Q18: 17 | R18: 18 | S18: 19 | T18: 20 | U18: 21 | V18: 22
C19: N° | D19: INDISP | E19: ID EQUIPO | F19: ESTACIÓN TRANSFORMADORA | G19: EQUIPO | H19: U [kV] | I19: $/h | J19: Salida | K19: Entrada | L19: Hs. Indisp. | M19: Mtos. Indisp. | N19: Tipo Sal.(²) | O19: AUT. | P19: K | Q19: PENALIZ. PROGRAM. | R19: PENALIZACIÓN FORZADA Por Salida hs. Restantes | T19: RESTANTE FORZADA | U19: Informó enTérm. | V19: TOTAL PENALIZAC.
C22: 42 | D22: 298548 | E22: 855 | F22: SALTO GRANDE | G22: LINEA CONCORDIA | H22: 132 | I22: =IF(H22=220,$G$14,IF(AND(H22<=132,H22>=66),$G$15,IF(AND(H22<66,H22>=33),$G$16,$G$17))) -> 16.043 | J22: 2016-02-01T10:41:00 | K22: 2016-02-01T10:49:00 | L22: =IF(F22="","",(K22-J22)*24) -> 0.1333333332 | M22: =IF(F22="","",ROUND((K22-J22)*24*60,0)) -> 8 | N22: F | O22: =IF(F22="","",IF(OR(N22="P",N22="RP"),"--","NO")) -> NO | P22: =IF(H22=220,$H$14,IF(AND(H22<=132,H22>=66),$H$15,IF(AND(H22<66,H22>=33),$H$16,$H$17))) -> 100 | Q22: =IF(N22="P",I22*P22*ROUND(M22/60,2)*0.1,"--") -> -- | R22: =IF(AND(N22="F",O22="NO"),I22*P22,"--") -> 1604.3 | S22: =IF(N22="F",I22*P22*ROUND(M22/60,2),"--") -> 208.559 | T22: =IF(N22="RF",I22*P22*ROUND(M22/60,2),"--") -> -- | U22: SI | V22: =IF(F22="","",SUM(Q22:T22)*IF(U22="SI",1,2)*IF(H22="500/220",0,1)) -> 1812.859
C23: 43 | D23: 298579 | E23: 815 | F23: CORRIENTES | G23: SALIDA DISTRIBUIDOR 73 (37) | H23: 13.2 | I23: =IF(H23=220,$G$14,IF(AND(H23<=132,H23>=66),$G$15,IF(AND(H23<66,H23>=33),$G$16,$G$17))) -> 12.029 | J23: 2016-02-07T03:38:00 | K23: 2016-02-11T14:05:00 | L23: =IF(F23="","",(K23-J23)*24) -> 106.45 | M23: =IF(F23="","",ROUND((K23-J23)*24*60,0)) -> 6387 | N23: F | O23: NO | P23: =IF(H23=220,$H$14,IF(AND(H23<=132,H23>=66),$H$15,IF(AND(H23<66,H23>=33),$H$16,$H$17))) -> 40 | Q23: =IF(N23="P",I23*P23*ROUND(M23/60,2)*0.1,"--") -> -- | R23: =IF(AND(N23="F",O23="NO"),I23*P23,"--") -> 481.16 | S23: =IF(N23="F",I23*P23*ROUND(M23/60,2),"--") -> 51219.482 | T23: =IF(N23="RF",I23*P23*ROUND(M23/60,2),"--") -> -- | U23: SI | V23: =IF(F23="","",SUM(Q23:T23)*IF(U23="SI",1,2)*IF(H23="500/220",0,1)) -> 51700.642
C24: 44 | D24: 299177 | E24: 3761 | F24: SALTO GRANDE | G24: SALIDA A TRAFO 2 | H24: 132 | I24: 16.043 | J24: 2016-02-19T09:12:00 | K24: 2016-02-19T09:47:00 | L24: 0.5833333333 | M24: 35 | N24: F | O24: NO | P24: 100 | Q24: -- | R24: 1604.3 | S24: 930.494 | T24: -- | U24: =IF(F24="","","SI") -> SI | V24: 2534.794
C25: 45 | D25: 299650 | E25: 849 | F25: SANTA CATALINA | G25: SALIDA TIPOITI | H25: 33 | I25: 12.029 | J25: 2016-02-29T14:07:00 | K25: 2016-02-29T23:59:00 | L25: 9.866666667 | M25: 592 | N25: F | O25: NO | P25: 50 | Q25: -- | R25: 601.45 | S25: 5936.3115 | T25: -- | U25: SI | V25: 6537.7615
I26: 12.029 | P26: 40 | Q26: -- | R26: -- | S26: -- | T26: --
I27: 12.029 | P27: 40 | Q27: -- | R27: -- | S27: -- | T27: --
I28: 12.029 | P28: 40 | Q28: -- | R28: -- | S28: -- | T28: --
I29: 12.029 | P29: 40 | Q29: -- | R29: -- | S29: -- | T29: --
I30: 12.029 | P30: 40 | Q30: -- | R30: -- | S30: -- | T30: --
I31: 12.029 | P31: 40 | Q31: -- | R31: -- | S31: -- | T31: --
I32: 12.029 | P32: 40 | Q32: -- | R32: -- | S32: -- | T32: --
I33: 12.029 | P33: 40 | Q33: -- | R33: -- | S33: -- | T33: --
I34: 12.029 | P34: 40 | Q34: -- | R34: -- | S34: -- | T34: --
I35: 12.029 | P35: 40 | Q35: -- | R35: -- | S35: -- | T35: --
I36: 12.029 | P36: 40 | Q36: -- | R36: -- | S36: -- | T36: --
I37: 12.029 | P37: 40 | Q37: -- | R37: -- | S37: -- | T37: --
I38: 12.029 | P38: 40 | Q38: -- | R38: -- | S38: -- | T38: --
I39: =IF(H39=220,$G$14,IF(AND(H39<=132,H39>=66),$G$15,IF(AND(H39<66,H39>=33),$G$16,$G$17))) -> 12.029 | L39: =IF(F39="","",(K39-J39)*24) ->  | M39: =IF(F39="","",ROUND((K39-J39)*24*60,0)) ->  | P39: =IF(H39=220,$H$14,IF(AND(H39<=132,H39>=66),$H$15,IF(AND(H39<66,H39>=33),$H$16,$H$17))) -> 40 | Q39: =IF(N39="P",I39*P39*ROUND(M39/60,2)*0.1,"--") -> -- | R39: =IF(AND(N39="F",O39="NO"),I39*P39,"--") -> -- | S39: =IF(N39="F",I39*P39*ROUND(M39/60,2),"--") -> -- | T39: =IF(N39="RF",I39*P39*ROUND(M39/60,2),"--") -> -- | U39: =IF(F39="","","SI") -> 
I40: =IF(H40=220,$G$14,IF(AND(H40<=132,H40>=66),$G$15,IF(AND(H40<66,H40>=33),$G$16,$G$17))) -> 12.029 | L40: =IF(F40="","",(K40-J40)*24) ->  | M40: =IF(F40="","",ROUND((K40-J40)*24*60,0)) ->  | P40: =IF(H40=220,$H$14,IF(AND(H40<=132,H40>=66),$H$15,IF(AND(H40<66,H40>=33),$H$16,$H$17))) -> 40 | Q40: =IF(N40="P",I40*P40*ROUND(M40/60,2)*0.1,"--") -> -- | R40: =IF(AND(N40="F",O40="NO"),I40*P40,"--") -> -- | S40: =IF(N40="F",I40*P40*ROUND(M40/60,2),"--") -> -- | T40: =IF(N40="RF",I40*P40*ROUND(M40/60,2),"--") -> -- | U40: =IF(F40="","","SI") -> 
I41: =IF(H41=220,$G$14,IF(AND(H41<=132,H41>=66),$G$15,IF(AND(H41<66,H41>=33),$G$16,$G$17))) -> 12.029 | L41: =IF(F41="","",(K41-J41)*24) ->  | M41: =IF(F41="","",ROUND((K41-J41)*24*60,0)) ->  | P41: =IF(H41=220,$H$14,IF(AND(H41<=132,H41>=66),$H$15,IF(AND(H41<66,H41>=33),$H$16,$H$17))) -> 40 | Q41: =IF(N41="P",I41*P41*ROUND(M41/60,2)*0.1,"--") -> -- | R41: =IF(AND(N41="F",O41="NO"),I41*P41,"--") -> -- | S41: =IF(N41="F",I41*P41*ROUND(M41/60,2),"--") -> -- | T41: =IF(N41="RF",I41*P41*ROUND(M41/60,2),"--") -> -- | U41: =IF(F41="","","SI") -> 
C43: (²) | D43: F - FORZADA | Q43: =SUM(Q20:Q42) -> 0 | R43: =SUM(R20:R42) -> 4291.21 | S43: =SUM(S20:S42) -> 58294.8465 | T43: =SUM(T20:T42) -> 0 | V43: =ROUND(SUM(V20:V42),2) -> 62586.06

Sheet SUP-DPEC
B2: ='TOT-0216'!B2 -> ANEXO II al Memorandum D.T.E.E. N° 294 / 2017
A4: ENTE NACIONAL REGULADOR
A5: DE LA ELECTRICIDAD
D8: SISTEMA DE TRANSPORTE DE ENERGÍA ELÉCTRICA POR DISTRIBUCIÓN TRONCAL - TRANSNEA S.A.
D10: 3.1.-SUPERVISIÓN - Transportista Independiente D.P.E.C.
B12: ='TOT-0216'!B14 -> Desde el 01 al 29 de Febrero de 2016
C16: a) Datos
K17: K
D18: Tiempo de servicio = | E18: =MID(B12,16,2)*24 -> 696 | F18: hs | H18: $/100 km-h : LÍNEAS 220 kV | J18: - | K18: =30*'TOT-0216'!B13 -> 60
D19: Porcentaje por Supervisión = | E19: 0.025 | H19: $/100 km-h : LÍNEAS 132 kV | J19: 345.493 | M19: RM por Transformador = | Y19: - | Z19: $/h-MVA
H20: $/100 km-h : LÍNEAS 66 kV | J20: - | M20: RM Salidas 132 kV = | Y20: 16.043 | Z20: $/hs.
C22: b) SM: es la suma de las sanciones a que en cada mes se hiciere pasible el Transportista Independiente, valorizadas con idénticos criterios que los que se aplican a la Concesionaria.
C24: N° | D24: LÍNEAS | E24: U [kV] | F24: Long. [km] | G24: $/h | H24: Salida | I24: Entrada | J24: Hs. Indisp. | K24: Minutos Indisp. | L24: Tipo Sal.(²) | M24: C.R. % | N24: PENALIZAC. PROGRAM. | O24: REDUCC. PROGRAM. | P24: PENALIZACIÓN FORZADA Por Salida 1ras. 3 hs. hs. Restantes | S24: REDUCC. FORZADA Por Salida 1ras. 3 hs. hs. Restantes | V24: RESTANTE FORZADA | W24: REDUCC. RESTANTE | X24: Informó enTérm. | Y24: TOTAL PENALIZAC.
C26: I | D26: PASO DE LOS LIBRES - MONTE CASEROS | E26: 132 | F26: 101 | G26: =IF(F26>25,F26,25)*IF(E26=220,$J$18,IF(E26=132,$J$19,$J$20))/100 -> 348.94793 | H26: 2016-02-21T22:33:00 | I26: 2016-02-21T22:41:00 | J26: =IF(D26="","",(I26-H26)*24) -> 0.1333333334 | K26: =IF(D26="","",ROUND((I26-H26)*24*60,0)) -> 8 | L26: F | M26: =IF(D26="","","--") -> -- | N26: =IF(L26="P",ROUND(K26/60,2)*G26*$K$18*0.01,"--") -> -- | O26: =IF(L26="RP",ROUND(K26/60,2)*G26*$K$18*0.01*M26/100,"--") -> -- | P26: =IF(L26="F",G26*$K$18,"--") -> 20936.8758 | Q26: =IF(AND(K26>10,L26="F"),G26*$K$18*IF(K26>180,3,ROUND(K26/60,2)),"--") -> -- | R26: =IF(AND(L26="F",K26>180),(ROUND(K26/60,2)-3)*G26*$K$18*0.1,"--") -> -- | S26: =IF(L26="R",G26*$K$18*M26/100,"--") -> -- | T26: =IF(AND(K26>10,L26="R"),G26*$K$18*M26/100*IF(K26>180,3,ROUND(K26/60,2)),"--") -> -- | U26: =IF(AND(L26="R",K26>180),(ROUND(K26/60,2)-3)*G26*$K$18*0.1*M26/100,"--") -> -- | V26: =IF(L26="RF",ROUND(K26/60,2)*G26*$K$18*0.1,"--") -> -- | W26: =IF(L26="RR",ROUND(K26/60,2)*G26*$K$18*0.1*M26/100,"--") -> -- | X26: SI | Y26: =IF(D26="","",SUM(N26:W26)*IF(X26="SI",1,2)) -> 20936.8758
C27: II | G27: =IF(F27>25,F27,25)*IF(E27=220,$J$18,IF(E27=132,$J$19,$J$20))/100 ->  | J27: =IF(D27="","",(I27-H27)*24) ->  | K27: =IF(D27="","",ROUND((I27-H27)*24*60,0)) ->  | M27: =IF(D27="","","--") ->  | N27: =IF(L27="P",ROUND(K27/60,2)*G27*$K$18*0.01,"--") -> -- | O27: =IF(L27="RP",ROUND(K27/60,2)*G27*$K$18*0.01*M27/100,"--") -> -- | P27: =IF(L27="F",G27*$K$18,"--") -> -- | Q27: =IF(AND(K27>10,L27="F"),G27*$K$18*IF(K27>180,3,ROUND(K27/60,2)),"--") -> -- | R27: =IF(AND(L27="F",K27>180),(ROUND(K27/60,2)-3)*G27*$K$18*0.1,"--") -> -- | S27: =IF(L27="R",G27*$K$18*M27/100,"--") -> -- | T27: =IF(AND(K27>10,L27="R"),G27*$K$18*M27/100*IF(K27>180,3,ROUND(K27/60,2)),"--") -> -- | U27: =IF(AND(L27="R",K27>180),(ROUND(K27/60,2)-3)*G27*$K$18*0.1*M27/100,"--") -> -- | V27: =IF(L27="RF",ROUND(K27/60,2)*G27*$K$18*0.1,"--") -> -- | W27: =IF(L27="RR",ROUND(K27/60,2)*G27*$K$18*0.1*M27/100,"--") -> -- | X27: =IF(D27="","","SI") ->  | Y27: =IF(D27="","",SUM(N27:W27)*IF(X27="SI",1,2)) -> 
C28: III | G28: =IF(F28>25,F28,25)*IF(E28=220,$J$18,IF(E28=132,$J$19,$J$20))/100 ->  | J28: =IF(D28="","",(I28-H28)*24) ->  | K28: =IF(D28="","",ROUND((I28-H28)*24*60,0)) ->  | M28: =IF(D28="","","--") ->  | N28: =IF(L28="P",ROUND(K28/60,2)*G28*$K$18*0.01,"--") -> -- | O28: =IF(L28="RP",ROUND(K28/60,2)*G28*$K$18*0.01*M28/100,"--") -> -- | P28: =IF(L28="F",G28*$K$18,"--") -> -- | Q28: =IF(AND(K28>10,L28="F"),G28*$K$18*IF(K28>180,3,ROUND(K28/60,2)),"--") -> -- | R28: =IF(AND(L28="F",K28>180),(ROUND(K28/60,2)-3)*G28*$K$18*0.1,"--") -> -- | S28: =IF(L28="R",G28*$K$18*M28/100,"--") -> -- | T28: =IF(AND(K28>10,L28="R"),G28*$K$18*M28/100*IF(K28>180,3,ROUND(K28/60,2)),"--") -> -- | U28: =IF(AND(L28="R",K28>180),(ROUND(K28/60,2)-3)*G28*$K$18*0.1*M28/100,"--") -> -- | V28: =IF(L28="RF",ROUND(K28/60,2)*G28*$K$18*0.1,"--") -> -- | W28: =IF(L28="RR",ROUND(K28/60,2)*G28*$K$18*0.1*M28/100,"--") -> -- | X28: =IF(D28="","","SI") ->  | Y28: =IF(D28="","",SUM(N28:W28)*IF(X28="SI",1,2)) -> 
J29: =IF(D29="","",(I29-H29)*24) ->  | K29: =IF(D29="","",ROUND((I29-H29)*24*60,0)) ->  | M29: =IF(D29="","","--") ->  | X29: =IF(D29="","","SI") ->  | Y29: =IF(D29="","",SUM(N29:W29)*IF(X29="SI",1,2)) -> 
Y30: =SUM(Y26:Y29) -> 20936.8758
C32: N° | D32: ESTACIÓN TRANSFORMADORA | E32: EQUIPO | F32: U [kV] | G32: $/h | H32: Salida | I32: Entrada | J32: Hs. Indisp. | K32: Mtos. Indisp. | L32: Tipo Sal.(²) | M32: AUT. | N32: K | O32: PENALIZ. PROGRAM. | P32: PENALIZACIÓN FORZADA Por Salida hs. Restantes | V32: RESTANTE FORZADA | X32: Informó enTérm. | Y32: TOTAL PENALIZAC.
C34: I | G34: =Y20 -> 16.043 | J34: =IF(D34="","",(I34-H34)*24) ->  | K34: =IF(D34="","",ROUND((I34-H34)*24*60,0)) ->  | M34: =IF(D34="","",IF(OR(L34="P",L34="RP"),"--","NO")) ->  | N34: 50 | O34: =IF(L34="P",G34*N34*ROUND(K34/60,2)*0.1,"--") -> -- | P34: =IF(AND(L34="F",M34="NO"),G34*N34,"--") -> -- | Q34: =IF(L34="F",G34*N34*ROUND(K34/60,2),"--") -> -- | V34: =IF(L34="RF",G34*N34*ROUND(K34/60,2),"--") -> -- | X34: =IF(D34="","","SI") ->  | Y34: =IF(D34="","",SUM(O34:V34)*IF(X34="SI",1,2)*IF(F34="500/220",0,1)) -> 
C35: II | G35: =Y20 -> 16.043 | J35: =IF(D35="","",(I35-H35)*24) ->  | K35: =IF(D35="","",ROUND((I35-H35)*24*60,0)) ->  | M35: =IF(D35="","",IF(OR(L35="P",L35="RP"),"--","NO")) ->  | N35: 50 | O35: =IF(L35="P",G35*N35*ROUND(K35/60,2)*0.1,"--") -> -- | P35: =IF(AND(L35="F",M35="NO"),G35*N35,"--") -> -- | Q35: =IF(L35="F",G35*N35*ROUND(K35/60,2),"--") -> -- | V35: =IF(L35="RF",G35*N35*ROUND(K35/60,2),"--") -> -- | X35: =IF(D35="","","SI") ->  | Y35: =IF(D35="","",SUM(O35:V35)*IF(X35="SI",1,2)*IF(F35="500/220",0,1)) -> 
C36: III | G36: =Y20 -> 16.043 | J36: =IF(D36="","",(I36-H36)*24) ->  | K36: =IF(D36="","",ROUND((I36-H36)*24*60,0)) ->  | M36: =IF(D36="","",IF(OR(L36="P",L36="RP"),"--","NO")) ->  | N36: 50 | O36: =IF(L36="P",G36*N36*ROUND(K36/60,2)*0.1,"--") -> -- | P36: =IF(AND(L36="F",M36="NO"),G36*N36,"--") -> -- | Q36: =IF(L36="F",G36*N36*ROUND(K36/60,2),"--") -> -- | V36: =IF(L36="RF",G36*N36*ROUND(K36/60,2),"--") -> -- | X36: =IF(D36="","","SI") ->  | Y36: =IF(D36="","",SUM(O36:V36)*IF(X36="SI",1,2)*IF(F36="500/220",0,1)) -> 
Y38: =SUM(Y34:Y37) -> 0
H39: SM= | I39: =Y30+Y38 -> 20936.8758
C41: c) RM : es la remuneración que mensualmente recibiría el Transportista Independiente, si su servicio fuera valorizado conforme al régimen remuneratorio que se aplica a la Concesionaria.
D43: Cargo por Capacidad | E43: kV | F43: km | I43: RM por Cap. Transporte | K43: RM por E. E. T. | X43: TOTAL
D45: PASO DE LOS LIBRES - MONTE CASEROS | E45: 132 | F45: 100.7 | I45: =F45*$J$19*$E$18/100 -> 242146.3699 | K45: 33702 | M45: ="(DTE "&[3]DATO!$G$14&[3]DATO!$H$14&")" -> (DTE 0216) | X45: =I45+I49 -> 253312.2979
D47: E.T. | E47: kV | F47: SALIDA | G47: SALIDA | I47: RM por Conexión
D49: PASO DE LOS LIBRES | E49: 132 | F49: INTERRUPTOR TRAFO 1 | I49: =Y20*E18 -> 11165.928
H52: RM = | I52: =X45+I49 -> 264478.2259 | M52: RM * = | X52: 111078.1402
C54: d) CS: Es el cargo por Supervisión de la Operación que la Transportista percibe por supervisar la operación y mantenimiento del Transportista Independiente.
D56: Cargo por Supervisión afectado a la sanción | H56: CS = | I56: =E19*X52 -> 2776.953505 | L56: RM* = VALOR EMPLEADO PARA CALCULAR CS
C58: e) SANCIÓN
D59: Sanción Calculada | E59: =10*Y30*I56/I52 -> 2198.318233
D61: TOTAL A PENALIZAR A TRANSNEA S.A. POR SUPERVISIÓN A D.P.E.C.
H63: SANCIÓN = | I63: =IF(E59>3*I56,3*I56,$E$59) -> 2198.318233

Sheet DATO
A1: Mes | B1: Mes | C1: Dia | D1: Año
A2: enero | B2: 01 | C2: 31 | D2: 2006
A3: febrero | B3: 02 | C3: =IF(MOD(E14,4)=0,29,28) -> 29 | D3: =+D2+1 -> 2007
A4: marzo | B4: 03 | C4: 31 | D4: =+D3+1 -> 2008
A5: abril | B5: 04 | C5: 30 | D5: =+D4+1 -> 2009
A6: mayo | B6: 05 | C6: 31 | D6: 2010
A7: junio | B7: 06 | C7: 30 | D7: 2011
A8: julio | B8: 07 | C8: 31 | D8: 2012
A9: agosto | B9: 08 | C9: 31 | D9: 2013
A10: septiembre | B10: 09 | C10: 30 | D10: 2014
A11: octubre | B11: 10 | C11: 31 | D11: 2015
A12: noviembre | B12: 11 | C12: 30 | D12: 2016
A13: diciembre | B13: 12 | C13: 31 | I13: Total
A14: 11 | B14: 2 | C14: =CELL("CONTENIDO",OFFSET(A1,B14,0)) -> febrero | D14: =CELL("CONTENIDO",OFFSET(C1,B14,0)) -> 29 | E14: =CELL("CONTENIDO",OFFSET(D1,A14,0)) -> 2016 | F14: ="Desde el 01 al " & D14 & " de " & C14 & " de " & E14 -> Desde el 01 al 29 de febrero de 2016 | G14: =CELL("CONTENIDO",OFFSET(B1,B14,0)) -> 02 | H14: =RIGHT(E14,2) -> 16 | I14: B14
B15: ="\\rugor\files\Transporte\Transporte\AA PROCESO AUT ARCHIVOS J\TRANSNEA\" &E14 -> \\rugor\files\Transporte\Transporte\AA PROCESO AUT ARCHIVOS J\TRANSNEA\2016 | G15: ="J"&G14&H14&"NEA" -> J0216NEA
B16: ="\\rugor\files\Transporte\transporte\AA PROCESO AUT\INTERCAMBIO\" &H14&G14 -> \\rugor\files\Transporte\transporte\AA PROCESO AUT\INTERCAMBIO\1602
A17: Hoja | B17: FilaInicio | C17: FilasPlantilla | D17: Columnas | E17: NombreHoja | F17: OrigenDeDatos | G17: Col00 | H17: Col01 | I17: Col02 | J17: Col03 | K17: Col04 | L17: Col05 | M17: Col06 | N17: Col07 | O17: Col08 | P17: Col09 | Q17: Col10 | R17: Col11 | S17: Col12 | T17: Col13 | U17: Col14 | V17: Col15 | W17: FILHTOTAL | X17: COLHTOTAL | Y17: FILHCALC | Z17: COLHCALC | AA17: FILTRANSP | AB17: COLTRANSP | AC17: COL TSAL
A18: MODELO L | B18: 23 | C18: 20 | D18: 11 | E18: ="LI-" & $G$14 -> LI-02 | F18: TRANSNEA_INDISPONIBILIDADES_LINEAS_TRANSNEA.XLS | G18: 3 | H18: 5 | I18: 4 | J18: 6 | K18: 7 | L18: 8 | M18: 0 | N18: 10 | O18: 11 | P18: 14 | Q18: 0 | R18: 26 | S18: 0 | T18: 0 | U18: 0 | V18: 0 | W18: 20 | X18: 9 | Y18: 44 | Z18: 27 | AA18: 21 | AB18: 27 | AC18: 14
A19: MODELO T | B19: 22 | C19: 20 | D19: 13 | E19: ="T-" & $G$14 -> T-02 | F19: TRANSNEA_INDISPONIBILIDADES_TRAFOS_TRANSNEA.XLS | G19: 3 | H19: 5 | I19: 4 | J19: 6 | K19: 7 | L19: 8 | M19: 9 | N19: 11 | O19: 12 | P19: 15 | Q19: 16 | R19: 18 | S19: 28 | T19: 17 | U19: 0 | V19: 0 | W19: 28 | X19: 9 | Y19: 43 | Z19: 29 | AA19: 20 | AB19: 29 | AC19: 15
A20: MODELO S | B20: 22 | C20: 20 | D20: 10 | E20: ="SA-" & $G$14 -> SA-02 | F20: TRANSNEA_INDISPONIBILIDADES_SALIDAS_TRANSNEA.XLS | G20: 3 | H20: 5 | I20: 4 | J20: 6 | K20: 7 | L20: 8 | M20: 10 | N20: 11 | O20: 14 | P20: 15 | Q20: 21 | R20: 0 | S20: 0 | T20: 0 | U20: 0 | V20: 0 | W20: 32 | X20: 9 | Y20: 43 | Z20: 22 | AA20: 20 | AB20: 22 | AC20: 14
A21: MODELO L DPEC | B21: 23 | C21: 20 | D21: 11 | E21: ="LI-DPEC-" & $G$14 -> LI-DPEC-02 | F21: TRANSNEA_INDISPONIBILIDADES_LINEAS_DPEC.XLS | G21: 3 | H21: 5 | I21: 4 | J21: 6 | K21: 7 | L21: 8 | M21: 0 | N21: 10 | O21: 11 | P21: 14 | Q21: 0 | R21: 26 | S21: 0 | T21: 0 | U21: 0 | V21: 0 | W21: 21 | X21: 9 | Y21: 44 | Z21: 27 | AA21: 21 | AB21: 27 | AC21: 14
A22: MODELO L ENECOR | B22: 23 | C22: 20 | D22: 11 | E22: ="LI-ENECOR-" & $G$14 -> LI-ENECOR-02 | F22: TRANSNEA_INDISPONIBILIDADES_LINEAS_ENECOR.XLS | G22: 3 | H22: 5 | I22: 4 | J22: 6 | K22: 7 | L22: 8 | M22: 0 | N22: 10 | O22: 11 | P22: 14 | Q22: 0 | R22: 26 | S22: 0 | T22: 0 | U22: 0 | V22: 0 | W22: 22 | X22: 9 | Y22: 44 | Z22: 27 | AA22: 21 | AB22: 27 | AC22: 14
A23: MODELO L ELING | B23: 25 | C23: 20 | D23: 11 | E23: ="LI-ELECT-" & $G$14 -> LI-ELECT-02 | F23: TRANSNEA_INDISPONIBILIDADES_LINEAS_ELECTROINGENIERIA.XLS | G23: 3 | H23: 5 | I23: 4 | J23: 6 | K23: 7 | L23: 8 | M23: 0 | N23: 10 | O23: 11 | P23: 14 | Q23: 0 | R23: 26 | S23: 0 | T23: 0 | U23: 0 | V23: 0 | W23: 23 | X23: 9 | Y23: 44 | Z23: 27 | AA23: 21 | AB23: 27 | AC23: 14
A24: MODELO T ELING | B24: 22 | C24: 20 | D24: 13 | E24: ="T-ELECT-" & $G$14 -> T-ELECT-02 | F24: TRANSNEA_INDISPONIBILIDADES_TRAFOS_ELECTROINGENIERIA.XLS | G24: 3 | H24: 5 | I24: 4 | J24: 6 | K24: 7 | L24: 8 | M24: 9 | N24: 11 | O24: 12 | P24: 15 | Q24: 16 | R24: 18 | S24: 28 | T24: 17 | U24: 0 | V24: 0 | W24: 29 | X24: 9 | Y24: 43 | Z24: 29 | AA24: 20 | AB24: 29 | AC24: 15
A25: MODELO S ELING | B25: 22 | C25: 20 | D25: 10 | E25: ="SA-ELECT-" & $G$14 -> SA-ELECT-02 | F25: TRANSNEA_INDISPONIBILIDADES_SALIDAS_ELECTROINGENIERIA.XLS | G25: 3 | H25: 5 | I25: 4 | J25: 6 | K25: 7 | L25: 8 | M25: 10 | N25: 11 | O25: 14 | P25: 15 | Q25: 21 | R25: 0 | S25: 0 | T25: 0 | U25: 0 | V25: 0 | W25: 33 | X25: 9 | Y25: 43 | Z25: 22 | AA25: 20 | AB25: 22 | AC25: 14
A26: SUP-DPEC | B26: 26 | C26: 25 | D26: 11 | E26: SUP-DPEC | F26: TRANSNEA_INDISPONIBILIDADES_LINEAS_DPEC.XLS | G26: 0 | H26: 0 | I26: 0 | J26: 4 | K26: 5 | L26: 6 | M26: 0 | N26: 8 | O26: 9 | P26: 12 | Q26: 0 | R26: 24 | S26: 0 | T26: 0 | U26: 0 | V26: 0 | W26: 0 | X26: 0 | Y26: 0 | Z26: 0 | AA26: 0 | AB26: 0 | AC26: 0
A27: MODELO VST | B27: 19 | C27: 24 | D27: 4 | E27: ="CAUSAS-VST-" & $G$14 -> CAUSAS-VST-02 | F27: TRANSNEA_CAUSAS_VST.XLS | G27: 3 | H27: 4 | I27: 5 | J27: 6 | K27: 7 | L27: 0 | M27: 0 | N27: 0 | O27: 0 | P27: 0 | Q27: 0 | R27: 0 | S27: 0 | T27: 0 | U27: 0 | V27: 0 | W27: 999 | X27: 999 | Y27: 0 | Z27: 0 | AA27: 0 | AB27: 0 | AC27: 0
